Workbook

Sheet المجمع
A3: م | B3: تاريخ | C3: وقت التحرك من الميناء | D3: رقم الكنتينر | E3: عدد التحميل | F3: شركة كنتينر | G3: مزرعة البضاعة | H3: اسم المحطه | I3: اسم المصدر | J3: اسم المستورد | K3: اسم الدوله | L3: جمارك | M3: Gross Weight | N3: Net Weight
A4: 1 | B4: =+onions1!L3 -> 2022-05-05 | C4: =+onions1!L4 -> 2022-05-07 | D4: =+onions1!L5 -> ARKU5002809 | E4: =+onions1!L6 -> ONIONS 1 | F4: =+onions1!L7 -> ARKAS | G4: =+onions1!B7 -> MOHAMED NWARA | H4: =+onions1!B9 -> ELANWAR | I4: =+onions1!B14 -> ELAHSAN | J4: =+onions1!B15 -> FRUTTORIA | K4: =+onions1!B16 -> RUSSIA | L4: =+onions1!L26 -> Are SEA LAND | M4: =+onions1!I71 -> 27725 | N4: =+onions1!B79 -> 27669
A5: 2
A6: 3

Sheet onions1
B1: AHSAN FOR LAND RECLAMATION AND EXPORT
B2: TIR YUKLEME PLANI
B3: NOVARASISK | E3: GIDECEGI SEHIR | I3: اسم البلد | K3: 15 | L3: 2022-05-05 | O3: TRIH | Q3: تاريخ | T3: 1
B4: AZAM | E4: YUKLE MEYAPAN KISI | I4: مسئول التحميل | K4: 16 | L4: 2022-05-07 | O4: LIMAN HAREKET | Q4: وقت التحرك من الميناء | T4: 2
E5: DEPPOOAN HAREKET SAATI | I5: وقت التحميل | K5: 17 | L5: ARKU5002809 | O5: KONTEYNIR SERI NUMARASI | Q5: رقم الكنتينر | T5: 3
E6: MALIN KALITE DUZEYI | I6: جودة البضاعه | K6: 18 | L6: ONIONS 1 | O6: KONTEYNIR SIRA NO | Q6: عدد التحميل | T6: 4
B7: MOHAMED NWARA | E7: MUSTAHSIL ISMI | I7: مزرعة البضاعة | K7: 19 | L7: ARKAS | O7: KONTENIR FIRMASI | Q7: شركة كنتينر | T7: 5
B8: MOHAMED NWARA | E8: MALI ALAN SIMSAR | I8: اسم السمسار | K8: 20 | L8: SHREIF ELTOHAMI | O8: SOFR ADI | Q8: اسم السواق | T8: 6
B9: ELANWAR | E9: MALIN ISLENDIGI ISLETME | I9: اسم المحطه | K9: 21 | L9: 01282666562 | O9: SOFOR TEL | Q9: التليفون | T9: 7
E10: MALIYET | I10: تكلفة البراد | K10: 22 | L10: 5825/5821 | O10: TIR PLAKA | Q10: رقم السياره | T10: 8
I11: تكلفة الحاويه | K11: 23 | L11: 1 | O11: PARTI NO | Q11: لوط | T11: 9
B12: 5 | I12: الوقت المتاح | K12: 24 | O12: TERMOKINK NAVLIUN | Q12: نولون براد | T12: 10
B13: ALEX | E13: LIMAN ADI | I13: اسم الميناء | K13: 25 | O13: HIS COVENANT | Q13: عهده | T13: 11
B14: ELAHSAN | E14: GONDERICI FIRMA | I14: اسم المصدر | K14: 26 | O14: THE REST TERMOKINK NAVLIUN | Q14: باقي نولون براد | T14: 12
B15: FRUTTORIA | E15: ALICI FIRMA | I15: اسم المستورد | K15: 27 | L15: 1 | O15: GIDECEGI DERECE | Q15: درجة الحراره | T15: 13
B16: RUSSIA | E16: GIDECEGI ULKE | I16: اسم الدوله | K16: 28 | L16: DIONYSSIS A | O16: GEMI ADL | Q16: اسم المركب | T16: 14
D18: 1 | F18: 0.9 | H18: 0.8 | I18: * | J18: 0.7 | L18: 0.6 | N18: 0.5 | O18: MALIN KALITE DUZEYI | Q18: جودة البضاعه
F20: CIF | H20: KOMISYON | J20: CIS | K20: * | L20: FOB | N20: EXW | O20: Payment method | Q20: طريقة الدفع
K22: * | L22: NO | N22: YES | O22: GENERATOR | Q22: مولد
G24: 5 | H24: ANOTHER COUNTRY | L24: EGYPT | O24: FREE TIM | Q24: الوقت المتبقى
D26: EASY WAY | H26: Ocean Queen | K26: * | L26: Are SEA LAND | O26: GUMAURK | Q26: جمارك
B27: KALIBRE
B28: SN/ | S28: KALIBRE | X28: 19
S29: حجم | X29: 180
G30: =SUM(H30:R30) -> 0 | S30: ADET
B31: YUKLEME PLANI | X31: =X28*X29 -> 3420
B32: 15 | D32: 14 | E32: 13 | F32: 12 | G32: 11 | H32: 10 | I32: 9 | J32: 8 | L32: 7 | M32: 6 | N32: 5 | O32: 4 | P32: 3 | Q32: 2 | R32: 1 | S32: نوع البضاعه
B33: ONIONS | C33: KABOTSHI | D33: ONIONS | E33: ONIONS | F33: ONIONS | G33: ONIONS | H33: ONIONS | I33: ONIONS | J33: ONIONS | L33: ONIONS | M33: ONIONS | N33: ONIONS | O33: ONIONS | P33: ONIONS | Q33: ONIONS | R33: ONIONS | S33: MALIN CINSI
B34: 153 | D34: 153 | E34: 153 | F34: 153 | G34: 153 | H34: 153 | I34: 153 | J34: 153 | L34: 153 | M34: 153 | N34: 153 | O34: 153 | P34: 153 | Q34: 153 | R34: 153 | S34: KASA ADEDI
B35: FRESH | C35: FRESH | D35: FRESH | E35: FRESH | F35: FRESH | G35: FRESH | H35: FRESH | I35: FRESH | J35: FRESH | L35: FRESH | M35: FRESH | N35: FRESH | O35: FRESH | P35: FRESH | Q35: FRESH | R35: FRESH | S35: FREESH/COLORING
B37: TOTAL | G37: 26 | H37: 25 | I37: 24 | J37: 23 | L37: 22 | M37: 21 | N37: 20 | O37: 19 | P37: 18 | Q37: 17 | R37: 16 | S37: نوع البضاعه
G38: ONIONS | H38: ONIONS | I38: ONIONS | J38: ONIONS | L38: ONIONS | M38: ONIONS | N38: ONIONS | O38: ONIONS | P38: ONIONS | Q38: ONIONS | R38: ONIONS | S38: MALIN CINSI
B39: =R34+Q34+P34+O34+N34+M34+L34+J34+I34+H34+G34+F34+E34+D34+B34+R39+Q39+P39+O39+N39+M39+L39+J39+I39+H39+G39 -> 2754 | P39: 153 | Q39: 153 | R39: 153 | S39: KASA ADEDI
G40: FRESH | H40: FRESH | I40: FRESH | J40: FRESH | L40: FRESH | M40: FRESH | N40: FRESH | O40: FRESH | P40: FRESH | Q40: FRESH | R40: FRESH | S40: FREESH/COLORING
B42: DEGREE | D42: FRESH ONIONS | L42: ملاحظــــــــــــــــــــــــــــــــــــــــات - NOTES | S42: نوع البضاعه
B43: CLASS 1 | D43: كل المهمات خاضعه للمورد | L43: MOHAMED NWARA 18 PALLET | S43: MALIN CINSI
S44: KASA ADEDI
B45: TOTAL | D45: =D43+F43+H43 ->  | K45: YUKLEME PLANI DOKUMU
B46: Weight | D46: العدد | F46: الوحدة/الوزن | G46: بيان المهمات | L46: weight BOXES | N46: weight BOX | O46: KASA ADETI | P46: PALET ADET | Q46: COLORS BOX | R46: AMBALAJ | T46: MALIN CINSI
B47: =F47*D47 -> 0 | F47: 17 | G47: بالتة خشب صادر | I47: EXPORTED WOOD PALLET | L47: اجمالي الوزن | N47: وزن الصندوق | O47: عدد الصندوق | P47: عدد البالتات | Q47: لون الصندوق | R47: مقاس الصندوق
B48: =D48*F48 -> 0 | F48: 17 | G48: شريحة خشب 80 × 120 | I48: WOOD SLICE 80*120 | L48: =O48*N48 -> 0 | N48: 0.51 | Q48: BLUE | R48: 30*50*16 | T48: ONIONS
B49: =D49*F49 -> 0 | F49: 4 | G49: برواز خشب | I49: WOOD FRAME | L49: =O49*N49 -> 0 | N49: 0.53 | Q49: BLAK | R49: 30*50*16
F50: غطاء | G50: غطاء الاحسن اسود | I50: BLACK COVER AHSAN | L50: 0 | N50: 0.58 | Q50: BLUE | R50: 30*50*22
F51: غطاء | G51: غطاء الاحسن احمر | I51: RED COVER AHSAN | L51: 0 | N51: 0.605 | Q51: BLAK | R51: 30*50*22
F52: زاوية | G52: زوايا الاحسن اسود | I52: BLACK SQUARE AHSAN | L52: 0 | N52: 1.25 | Q52: BLUE | R52: 40*60*14
F53: زاوية | G53: زوايا الاحسن احمر | I53: RED SQUARE AHSAN | L53: 0 | N53: 0.42 | Q53: BLUE | R53: 30*40*18
F54: كيلو | G54: كلبس | I54: CLIPS | L54: 0 | N54: 0.45 | Q54: BLAK | R54: 30*40*18 | X54: 5.3
F55: كيلو | G55: شمبر | I55: CHAMBER | L55: 0 | N55: 0.45 | Q55: BLUE | R55: 30*40*16 | X55: وزن صند بالبضاعه
F56: بالالف | G56: استيكر حراري | I56: THERMAL STICKER | L56: 0 | N56: 0.45 | Q56: BLAK | R56: 30*40*16
F57: بكره | G57: استيكر بانت الاحسن | I57: PANT STICKER AHSAN | L57: 0 | N57: 0.7 | Q57: BLUE | R57: 30*40*27.5
F58: جهاز | G58: جهاز حرارة | I58: HEAT DEVICE | L58: 0 | N58: 0.3 | Q58: BLUE | R58: 30*40*12
F59: كيس | G59: زوايا احمر 120 سم | I59: RED SQUARE 120 CM | L59: 0 | N59: 0.254 | Q59: BLUE | R59: 30*40*10
F60: عدد | G60: بيان بالت | I60: BALT REPORT | L60: 0 | N60: 0.85 | R60: KARTOUN OPEN TOP
F61: عدد | G61: بانت 750 | I61: PANT 750 | L61: =O61*N61 -> 0 | O61: 2754 | P61: 18 | R61: SHIKARA
F62: ص | G62: صندوق 30*40*12 ازرق | H62: صندوق 30*50*22 اسود | I62: 30*40*12 BLUE | L62: 0
F63: عدد | G63: صندوق 30*40*10 ازرق | H63: صندوق 30*50*22 اسود | I63: BOX 30*40*10 BLUE | L63: 0
F64: عدد | G64: بانت 1 كيلو | I64: PANT 1 K.G | L64: 0 | N64: 0.85 | R64: KARTOUN TELSKOBEK
F65: كيلو | G65: ورق جزاري 30*40 | L65: 306 | N65: 17 | O65: 18 | R65: EXPORTED WOOD PALLET
F66: كيلو | G66: ورق جزاري 30*50 | L66: 0
B67: =SUM(B47:C66) -> 0 | L67: =SUM(L48:M63) -> 0 | O67: =SUM(O48:O63) -> 2754 | P67: =SUM(P48:P66) -> 18
B68: YUKLEME PLANI DOKUMU
B69: FIYAT | D69: NET KILO | F69: DARA | H69: GAFAF KILO | I69: BRUT KILO | L69: TOTAL | M69: BOKS | O69: PALET ADET | P69: Box type and size | R69: Item
B70: Price | D70: Net Weight | F70: Tare weight | H70: GAFAF weight | I70: Gross Weight | L70: =O70*M70 -> 0 | P70: 30*40*12 BLUE | R70: ONIONS
D71: =I71+H71-F71 -> 27669 | F71: =B67+L67+L64+L65+L66 -> 306 | H71: 250 | I71: 27725 | L71: =O71*M71 -> 0 | P71: 30*40*10 BLUE
L72: 0 | P72: 30*40*10 BLUE
B73: Net Weight | D73: Gross Weight | F73: Net | G73: Gross | I73: Number of boxes | L73: 2754 | M73: 153 | O73: 18 | P73: SHIKARA
B74: =F74*I74 -> 27669 | D74: =G74*I74 -> 27725 | F74: =D71/I74 -> 10.04684096 | G74: =I71/I74 -> 10.06717502 | I74: 2754 | L74: 0 | P74: 30*50*40
L75: 0 | P75: 30*50*40 | R75: ONIONS
B76: =I76*G76 -> 0 | L76: 0 | P76: 30*50*40
B77: =I77*G77 -> 0 | D77: =I77*F77 -> 0 | L77: 0 | P77: 30*50*40
B78: =I78*G78 -> 0 | D78: =I78*F78 -> 0 | L78: 0 | P78: 30*50*40
B79: =SUM(B74:C78) -> 27669 | D79: =SUM(D74:E78) -> 27725 | I79: =SUM(I74:J78) -> 2754 | L79: =SUM(L69:L78) -> 2754 | O79: =SUM(O70:O78) -> 18 | P79: TOTAL
J80: =B39-I79 -> 0 | L80: =O67-L79 -> 0 | O80: =P67-O79 -> 0

Sheet onions2
B1: AHSAN FOR LAND RECLAMATION AND EXPORT
B2: TIR YUKLEME PLANI
B3: NOVARASISK | E3: GIDECEGI SEHIR | I3: اسم البلد | K3: 15 | L3: 2022-05-05 | O3: TRIH | Q3: تاريخ | T3: 1
B4: AZAM | E4: YUKLE MEYAPAN KISI | I4: مسئول التحميل | K4: 16 | L4: 2022-05-07 | O4: LIMAN HAREKET | Q4: وقت التحرك من الميناء | T4: 2
E5: DEPPOOAN HAREKET SAATI | I5: وقت التحميل | K5: 17 | L5: ARKU5004648 | O5: KONTEYNIR SERI NUMARASI | Q5: رقم الكنتينر | T5: 3
E6: MALIN KALITE DUZEYI | I6: جودة البضاعه | K6: 18 | L6: ONIONS 2 | O6: KONTEYNIR SIRA NO | Q6: عدد التحميل | T6: 4
B7: MOHAMED NWARA | E7: MUSTAHSIL ISMI | I7: مزرعة البضاعة | K7: 19 | L7: ARKAS | O7: KONTENIR FIRMASI | Q7: شركة كنتينر | T7: 5
B8: MOHAMED NWARA | E8: MALI ALAN SIMSAR | I8: اسم السمسار | K8: 20 | L8: HAMDI HALMI | O8: SOFR ADI | Q8: اسم السواق | T8: 6
B9: ELANWAR | E9: MALIN ISLENDIGI ISLETME | I9: اسم المحطه | K9: 21 | L9: 01221461430 | O9: SOFOR TEL | Q9: التليفون | T9: 7
E10: MALIYET | I10: تكلفة البراد | K10: 22 | L10: 1639/9745 | O10: TIR PLAKA | Q10: رقم السياره | T10: 8
I11: تكلفة الحاويه | K11: 23 | L11: 1 | O11: PARTI NO | Q11: لوط | T11: 9
B12: 5 | I12: الوقت المتاح | K12: 24 | O12: TERMOKINK NAVLIUN | Q12: نولون براد | T12: 10
B13: ALEX | E13: LIMAN ADI | I13: اسم الميناء | K13: 25 | O13: HIS COVENANT | Q13: عهده | T13: 11
B14: ELAHSAN | E14: GONDERICI FIRMA | I14: اسم المصدر | K14: 26 | O14: THE REST TERMOKINK NAVLIUN | Q14: باقي نولون براد | T14: 12
B15: FRUTTORIA | E15: ALICI FIRMA | I15: اسم المستورد | K15: 27 | L15: 1 | O15: GIDECEGI DERECE | Q15: درجة الحراره | T15: 13
B16: RUSSIA | E16: GIDECEGI ULKE | I16: اسم الدوله | K16: 28 | L16: DIONYSSIS A | O16: GEMI ADL | Q16: اسم المركب | T16: 14
D18: 1 | F18: 0.9 | H18: 0.8 | I18: * | J18: 0.7 | L18: 0.6 | N18: 0.5 | O18: MALIN KALITE DUZEYI | Q18: جودة البضاعه
F20: CIF | H20: KOMISYON | J20: CIS | K20: * | L20: FOB | N20: EXW | O20: Payment method | Q20: طريقة الدفع
K22: * | L22: NO | N22: YES | O22: GENERATOR | Q22: مولد
G24: 5 | H24: ANOTHER COUNTRY | L24: EGYPT | O24: FREE TIM | Q24: الوقت المتبقى
D26: EASY WAY | H26: Ocean Queen | K26: * | L26: Are SEA LAND | O26: GUMAURK | Q26: جمارك
B27: KALIBRE
B28: SN/ | S28: KALIBRE | X28: 19
S29: حجم | X29: 180
G30: =SUM(H30:R30) -> 0 | S30: ADET
B31: YUKLEME PLANI | X31: =X28*X29 -> 3420
B32: 15 | D32: 14 | E32: 13 | F32: 12 | G32: 11 | H32: 10 | I32: 9 | J32: 8 | L32: 7 | M32: 6 | N32: 5 | O32: 4 | P32: 3 | Q32: 2 | R32: 1 | S32: نوع البضاعه
B33: ONIONS | C33: KABOTSHI | D33: ONIONS | E33: ONIONS | F33: ONIONS | G33: ONIONS | H33: ONIONS | I33: ONIONS | J33: ONIONS | L33: ONIONS | M33: ONIONS | N33: ONIONS | O33: ONIONS | P33: ONIONS | Q33: ONIONS | R33: ONIONS | S33: MALIN CINSI
B34: 153 | D34: 153 | E34: 153 | F34: 153 | G34: 153 | H34: 153 | I34: 153 | J34: 153 | L34: 153 | M34: 153 | N34: 153 | O34: 153 | P34: 153 | Q34: 153 | R34: 153 | S34: KASA ADEDI
B35: FRESH | C35: FRESH | D35: FRESH | E35: FRESH | F35: FRESH | G35: FRESH | H35: FRESH | I35: FRESH | J35: FRESH | L35: FRESH | M35: FRESH | N35: FRESH | O35: FRESH | P35: FRESH | Q35: FRESH | R35: FRESH | S35: FREESH/COLORING
B37: TOTAL | G37: 26 | H37: 25 | I37: 24 | J37: 23 | L37: 22 | M37: 21 | N37: 20 | O37: 19 | P37: 18 | Q37: 17 | R37: 16 | S37: نوع البضاعه
G38: ONIONS | H38: ONIONS | I38: ONIONS | J38: ONIONS | L38: ONIONS | M38: ONIONS | N38: ONIONS | O38: ONIONS | P38: ONIONS | Q38: ONIONS | R38: ONIONS | S38: MALIN CINSI
B39: =R34+Q34+P34+O34+N34+M34+L34+J34+I34+H34+G34+F34+E34+D34+B34+R39+Q39+P39+O39+N39+M39+L39+J39+I39+H39+G39 -> 2754 | P39: 153 | Q39: 153 | R39: 153 | S39: KASA ADEDI
G40: FRESH | H40: FRESH | I40: FRESH | J40: FRESH | L40: FRESH | M40: FRESH | N40: FRESH | O40: FRESH | P40: FRESH | Q40: FRESH | R40: FRESH | S40: FREESH/COLORING
B42: DEGREE | D42: FRESH ONIONS | L42: ملاحظــــــــــــــــــــــــــــــــــــــــات - NOTES | S42: نوع البضاعه
B43: CLASS 1 | D43: كل المهمات خاضعه للمورد | L43: MOHAMED NWARA 18 PALLET | S43: MALIN CINSI
S44: KASA ADEDI
B45: TOTAL | D45: =D43+F43+H43 ->  | K45: YUKLEME PLANI DOKUMU
B46: Weight | D46: العدد | F46: الوحدة/الوزن | G46: بيان المهمات | L46: weight BOXES | N46: weight BOX | O46: KASA ADETI | P46: PALET ADET | Q46: COLORS BOX | R46: AMBALAJ | T46: MALIN CINSI
B47: =F47*D47 -> 0 | F47: 17 | G47: بالتة خشب صادر | I47: EXPORTED WOOD PALLET | L47: اجمالي الوزن | N47: وزن الصندوق | O47: عدد الصندوق | P47: عدد البالتات | Q47: لون الصندوق | R47: مقاس الصندوق
B48: =D48*F48 -> 0 | F48: 17 | G48: شريحة خشب 80 × 120 | I48: WOOD SLICE 80*120 | L48: =O48*N48 -> 0 | N48: 0.51 | Q48: BLUE | R48: 30*50*16 | T48: ONIONS
B49: =D49*F49 -> 0 | F49: 4 | G49: برواز خشب | I49: WOOD FRAME | L49: =O49*N49 -> 0 | N49: 0.53 | Q49: BLAK | R49: 30*50*16
F50: غطاء | G50: غطاء الاحسن اسود | I50: BLACK COVER AHSAN | L50: 0 | N50: 0.58 | Q50: BLUE | R50: 30*50*22
F51: غطاء | G51: غطاء الاحسن احمر | I51: RED COVER AHSAN | L51: 0 | N51: 0.605 | Q51: BLAK | R51: 30*50*22
F52: زاوية | G52: زوايا الاحسن اسود | I52: BLACK SQUARE AHSAN | L52: 0 | N52: 1.25 | Q52: BLUE | R52: 40*60*14
F53: زاوية | G53: زوايا الاحسن احمر | I53: RED SQUARE AHSAN | L53: 0 | N53: 0.42 | Q53: BLUE | R53: 30*40*18
F54: كيلو | G54: كلبس | I54: CLIPS | L54: 0 | N54: 0.45 | Q54: BLAK | R54: 30*40*18 | X54: 5.3
F55: كيلو | G55: شمبر | I55: CHAMBER | L55: 0 | N55: 0.45 | Q55: BLUE | R55: 30*40*16 | X55: وزن صند بالبضاعه
F56: بالالف | G56: استيكر حراري | I56: THERMAL STICKER | L56: 0 | N56: 0.45 | Q56: BLAK | R56: 30*40*16
F57: بكره | G57: استيكر بانت الاحسن | I57: PANT STICKER AHSAN | L57: 0 | N57: 0.7 | Q57: BLUE | R57: 30*40*27.5
F58: جهاز | G58: جهاز حرارة | I58: HEAT DEVICE | L58: 0 | N58: 0.3 | Q58: BLUE | R58: 30*40*12
F59: كيس | G59: زوايا احمر 120 سم | I59: RED SQUARE 120 CM | L59: 0 | N59: 0.254 | Q59: BLUE | R59: 30*40*10
F60: عدد | G60: بيان بالت | I60: BALT REPORT | L60: 0 | N60: 0.85 | R60: KARTOUN OPEN TOP
F61: عدد | G61: بانت 750 | I61: PANT 750 | L61: 0 | O61: 2754 | P61: 18 | R61: SHIKARA
F62: ص | G62: صندوق 30*40*12 ازرق | H62: صندوق 30*50*22 اسود | I62: 30*40*12 BLUE | L62: 0
F63: عدد | G63: صندوق 30*40*10 ازرق | H63: صندوق 30*50*22 اسود | I63: BOX 30*40*10 BLUE | L63: 0
F64: عدد | G64: بانت 1 كيلو | I64: PANT 1 K.G | L64: 0 | N64: 0.85 | R64: KARTOUN TELSKOBEK
F65: كيلو | G65: ورق جزاري 30*40 | L65: =O65*N65 -> 306 | N65: 17 | O65: 18 | R65: EXPORTED WOOD PALLET
F66: كيلو | G66: ورق جزاري 30*50 | L66: 0
B67: =SUM(B47:C66) -> 0 | L67: =SUM(L48:M62) -> 0 | O67: =SUM(O48:O62) -> 2754 | P67: =SUM(P48:P66) -> 18
B68: YUKLEME PLANI DOKUMU
B69: FIYAT | D69: NET KILO | F69: DARA | H69: GAFAF KILO | I69: BRUT KILO | L69: TOTAL | M69: BOKS | O69: PALET ADET | P69: Box type and size | R69: Item
B70: Price | D70: Net Weight | F70: Tare weight | H70: GAFAF weight | I70: Gross Weight | L70: =O70*M70 -> 0 | P70: 30*40*12 BLUE | R70: ONIONS
D71: =I71+H71-F71 -> 27789 | F71: =B67+L67+L66+L65+L64+L63 -> 306 | H71: 250 | I71: 27845 | L71: =O71*M71 -> 0 | P71: 30*40*10 BLUE
L72: 0 | P72: 30*40*10 BLUE
B73: Net Weight | D73: Gross Weight | F73: Net | G73: Gross | I73: Number of boxes | L73: 2754 | M73: 153 | O73: 18 | P73: SHIKARA
B74: =F74*I74 -> 27789 | D74: =G74*I74 -> 27845 | F74: =D71/I74 -> 10.09041394 | G74: =I71/I74 -> 10.110748 | I74: 2754 | L74: 0 | P74: 30*50*40
L75: 0 | P75: 30*50*40 | R75: ONIONS
B76: =I76*G76 -> 0 | L76: 0 | P76: 30*50*40
B77: =I77*G77 -> 0 | D77: =I77*F77 -> 0 | L77: 0 | P77: 30*50*40
B78: =I78*G78 -> 0 | D78: =I78*F78 -> 0 | L78: 0 | P78: 30*50*40
B79: =SUM(B74:C78) -> 27789 | D79: =SUM(D74:E78) -> 27845 | I79: =SUM(I74:J78) -> 2754 | L79: =SUM(L69:L78) -> 2754 | O79: =SUM(O70:O78) -> 18 | P79: TOTAL
J80: =B39-I79 -> 0 | L80: =O67-L79 -> 0 | O80: =P67-O79 -> 0

Sheet onions3
B1: AHSAN FOR LAND RECLAMATION AND EXPORT
B2: TIR YUKLEME PLANI
B3: NOVARASISK | E3: GIDECEGI SEHIR | I3: اسم البلد | K3: 15 | L3: 2022-05-05 | O3: TRIH | Q3: تاريخ | T3: 1
B4: AZAM | E4: YUKLE MEYAPAN KISI | I4: مسئول التحميل | K4: 16 | L4: 2022-05-07 | O4: LIMAN HAREKET | Q4: وقت التحرك من الميناء | T4: 2
E5: DEPPOOAN HAREKET SAATI | I5: وقت التحميل | K5: 17 | L5: ARKU5023231 | O5: KONTEYNIR SERI NUMARASI | Q5: رقم الكنتينر | T5: 3
E6: MALIN KALITE DUZEYI | I6: جودة البضاعه | K6: 18 | L6: ONIONS 3 | O6: KONTEYNIR SIRA NO | Q6: عدد التحميل | T6: 4
B7: MOHAMED NWARA | E7: MUSTAHSIL ISMI | I7: مزرعة البضاعة | K7: 19 | L7: ARKAS | O7: KONTENIR FIRMASI | Q7: شركة كنتينر | T7: 5
B8: MOHAMED NWARA | E8: MALI ALAN SIMSAR | I8: اسم السمسار | K8: 20 | L8: AHMED SAAD | O8: SOFR ADI | Q8: اسم السواق | T8: 6
B9: ELANWAR | E9: MALIN ISLENDIGI ISLETME | I9: اسم المحطه | K9: 21 | L9: 01210056452 | O9: SOFOR TEL | Q9: التليفون | T9: 7
E10: MALIYET | I10: تكلفة البراد | K10: 22 | L10: 2359/7631 | O10: TIR PLAKA | Q10: رقم السياره | T10: 8
I11: تكلفة الحاويه | K11: 23 | L11: 2 | O11: PARTI NO | Q11: لوط | T11: 9
B12: 5 | I12: الوقت المتاح | K12: 24 | O12: TERMOKINK NAVLIUN | Q12: نولون براد | T12: 10
B13: ALEX | E13: LIMAN ADI | I13: اسم الميناء | K13: 25 | O13: HIS COVENANT | Q13: عهده | T13: 11
B14: ELAHSAN | E14: GONDERICI FIRMA | I14: اسم المصدر | K14: 26 | O14: THE REST TERMOKINK NAVLIUN | Q14: باقي نولون براد | T14: 12
B15: FRUTTORIA | E15: ALICI FIRMA | I15: اسم المستورد | K15: 27 | L15: 1 | O15: GIDECEGI DERECE | Q15: درجة الحراره | T15: 13
B16: RUSSIA | E16: GIDECEGI ULKE | I16: اسم الدوله | K16: 28 | L16: DIONYSSIS A | O16: GEMI ADL | Q16: اسم المركب | T16: 14
D18: 1 | F18: 0.9 | H18: 0.8 | I18: * | J18: 0.7 | L18: 0.6 | N18: 0.5 | O18: MALIN KALITE DUZEYI | Q18: جودة البضاعه
F20: CIF | H20: KOMISYON | J20: CIS | K20: * | L20: FOB | N20: EXW | O20: Payment method | Q20: طريقة الدفع
K22: * | L22: NO | N22: YES | O22: GENERATOR | Q22: مولد
G24: 5 | H24: ANOTHER COUNTRY | L24: EGYPT | O24: FREE TIM | Q24: الوقت المتبقى
D26: EASY WAY | H26: Ocean Queen | K26: * | L26: Are SEA LAND | O26: GUMAURK | Q26: جمارك
B27: KALIBRE
B28: SN/ | S28: KALIBRE | X28: 19
S29: حجم | X29: 180
G30: =SUM(H30:R30) -> 0 | S30: ADET
B31: YUKLEME PLANI | X31: =X28*X29 -> 3420
B32: 15 | D32: 14 | E32: 13 | F32: 12 | G32: 11 | H32: 10 | I32: 9 | J32: 8 | L32: 7 | M32: 6 | N32: 5 | O32: 4 | P32: 3 | Q32: 2 | R32: 1 | S32: نوع البضاعه
B33: ONIONS | C33: KABOTSHI | D33: ONIONS | E33: ONIONS | F33: ONIONS | G33: ONIONS | H33: ONIONS | I33: ONIONS | J33: ONIONS | L33: ONIONS | M33: ONIONS | N33: ONIONS | O33: ONIONS | P33: ONIONS | Q33: ONIONS | R33: ONIONS | S33: MALIN CINSI
B34: 153 | D34: 153 | E34: 153 | F34: 153 | G34: 153 | H34: 153 | I34: 153 | J34: 153 | L34: 153 | M34: 153 | N34: 153 | O34: 153 | P34: 153 | Q34: 153 | R34: 153 | S34: KASA ADEDI
B35: FRESH | C35: FRESH | D35: FRESH | E35: FRESH | F35: FRESH | G35: FRESH | H35: FRESH | I35: FRESH | J35: FRESH | L35: FRESH | M35: FRESH | N35: FRESH | O35: FRESH | P35: FRESH | Q35: FRESH | R35: FRESH | S35: FREESH/COLORING
B37: TOTAL | G37: 26 | H37: 25 | I37: 24 | J37: 23 | L37: 22 | M37: 21 | N37: 20 | O37: 19 | P37: 18 | Q37: 17 | R37: 16 | S37: نوع البضاعه
G38: ONIONS | H38: ONIONS | I38: ONIONS | J38: ONIONS | L38: ONIONS | M38: ONIONS | N38: ONIONS | O38: ONIONS | P38: ONIONS | Q38: ONIONS | R38: ONIONS | S38: MALIN CINSI
B39: =R34+Q34+P34+O34+N34+M34+L34+J34+I34+H34+G34+F34+E34+D34+B34+R39+Q39+P39+O39+N39+M39+L39+J39+I39+H39+G39 -> 2754 | P39: 153 | Q39: 153 | R39: 153 | S39: KASA ADEDI
G40: FRESH | H40: FRESH | I40: FRESH | J40: FRESH | L40: FRESH | M40: FRESH | N40: FRESH | O40: FRESH | P40: FRESH | Q40: FRESH | R40: FRESH | S40: FREESH/COLORING
B42: DEGREE | D42: FRESH ONIONS | L42: ملاحظــــــــــــــــــــــــــــــــــــــــات - NOTES | S42: نوع البضاعه
B43: CLASS 1 | D43: كل المهمات خاضعه للمورد | L43: MOHAMED NWARA 18 PALLET | S43: MALIN CINSI
S44: KASA ADEDI
B45: TOTAL | D45: =D43+F43+H43 ->  | K45: YUKLEME PLANI DOKUMU
B46: Weight | D46: العدد | F46: الوحدة/الوزن | G46: بيان المهمات | L46: weight BOXES | N46: weight BOX | O46: KASA ADETI | P46: PALET ADET | Q46: COLORS BOX | R46: AMBALAJ | T46: MALIN CINSI
B47: =F47*D47 -> 0 | F47: 17 | G47: بالتة خشب صادر | I47: EXPORTED WOOD PALLET | L47: اجمالي الوزن | N47: وزن الصندوق | O47: عدد الصندوق | P47: عدد البالتات | Q47: لون الصندوق | R47: مقاس الصندوق
B48: =D48*F48 -> 0 | F48: 17 | G48: شريحة خشب 80 × 120 | I48: WOOD SLICE 80*120 | L48: =O48*N48 -> 0 | N48: 0.51 | Q48: BLUE | R48: 30*50*16 | T48: ONIONS
B49: =D49*F49 -> 0 | F49: 4 | G49: برواز خشب | I49: WOOD FRAME | L49: =O49*N49 -> 0 | N49: 0.53 | Q49: BLAK | R49: 30*50*16
F50: غطاء | G50: غطاء الاحسن اسود | I50: BLACK COVER AHSAN | L50: 0 | N50: 0.58 | Q50: BLUE | R50: 30*50*22
F51: غطاء | G51: غطاء الاحسن احمر | I51: RED COVER AHSAN | L51: 0 | N51: 0.605 | Q51: BLAK | R51: 30*50*22
F52: زاوية | G52: زوايا الاحسن اسود | I52: BLACK SQUARE AHSAN | L52: 0 | N52: 1.25 | Q52: BLUE | R52: 40*60*14
F53: زاوية | G53: زوايا الاحسن احمر | I53: RED SQUARE AHSAN | L53: 0 | N53: 0.42 | Q53: BLUE | R53: 30*40*18
F54: كيلو | G54: كلبس | I54: CLIPS | L54: 0 | N54: 0.45 | Q54: BLAK | R54: 30*40*18 | X54: 5.3
F55: كيلو | G55: شمبر | I55: CHAMBER | L55: 0 | N55: 0.45 | Q55: BLUE | R55: 30*40*16 | X55: وزن صند بالبضاعه
F56: بالالف | G56: استيكر حراري | I56: THERMAL STICKER | L56: 0 | N56: 0.45 | Q56: BLAK | R56: 30*40*16
F57: بكره | G57: استيكر بانت الاحسن | I57: PANT STICKER AHSAN | L57: 0 | N57: 0.7 | Q57: BLUE | R57: 30*40*27.5
F58: جهاز | G58: جهاز حرارة | I58: HEAT DEVICE | L58: 0 | N58: 0.3 | Q58: BLUE | R58: 30*40*12
F59: كيس | G59: زوايا احمر 120 سم | I59: RED SQUARE 120 CM | L59: 0 | N59: 0.254 | Q59: BLUE | R59: 30*40*10
F60: عدد | G60: بيان بالت | I60: BALT REPORT | L60: 0 | N60: 0.85 | R60: KARTOUN OPEN TOP
F61: عدد | G61: بانت 750 | I61: PANT 750 | L61: 0 | O61: 2754 | P61: 18 | R61: SHIKARA
F62: ص | G62: صندوق 30*40*12 ازرق | H62: صندوق 30*50*22 اسود | I62: 30*40*12 BLUE | L62: 0
F63: عدد | G63: صندوق 30*40*10 ازرق | H63: صندوق 30*50*22 اسود | I63: BOX 30*40*10 BLUE | L63: =O63*N63 -> 306 | N63: 17 | O63: 18 | R63: EXPORTED WOOD PALLET
F64: عدد | G64: بانت 1 كيلو | I64: PANT 1 K.G | L64: 0 | N64: 0.85 | R64: KARTOUN TELSKOBEK
F65: كيلو | G65: ورق جزاري 30*40 | L65: =O65*N65 -> 0
F66: كيلو | G66: ورق جزاري 30*50 | L66: 0
B67: =SUM(B47:C66) -> 0 | L67: =SUM(L48:M62) -> 0 | O67: =SUM(O48:O62) -> 2754 | P67: =SUM(P48:P66) -> 18
B68: YUKLEME PLANI DOKUMU
B69: FIYAT | D69: NET KILO | F69: DARA | H69: GAFAF KILO | I69: BRUT KILO | L69: TOTAL | M69: BOKS | O69: PALET ADET | P69: Box type and size | R69: Item
B70: Price | D70: Net Weight | F70: Tare weight | H70: GAFAF weight | I70: Gross Weight | L70: =O70*M70 -> 0 | P70: 30*40*12 BLUE | R70: ONIONS
D71: =I71+H71-F71 -> 27754 | F71: =B67+L67+L66+L64+L63 -> 306 | H71: 250 | I71: 27810 | L71: =O71*M71 -> 0 | P71: 30*40*10 BLUE
L72: 0 | P72: 30*40*10 BLUE
B73: Net Weight | D73: Gross Weight | F73: Net | G73: Gross | I73: Number of boxes | L73: 2754 | M73: 153 | O73: 18 | P73: SHIKARA
B74: =F74*I74 -> 27754 | D74: =G74*I74 -> 27810 | F74: =D71/I74 -> 10.07770516 | G74: =I71/I74 -> 10.09803922 | I74: 2754 | L74: 0 | P74: 30*50*40
L75: 0 | P75: 30*50*40 | R75: ONIONS
B76: =I76*G76 -> 0 | L76: 0 | P76: 30*50*40
B77: =I77*G77 -> 0 | D77: =I77*F77 -> 0 | L77: 0 | P77: 30*50*40
B78: =I78*G78 -> 0 | D78: =I78*F78 -> 0 | L78: 0 | P78: 30*50*40
B79: =SUM(B74:C78) -> 27754 | D79: =SUM(D74:E78) -> 27810 | I79: =SUM(I74:J78) -> 2754 | L79: =SUM(L69:L78) -> 2754 | O79: =SUM(O70:O78) -> 18 | P79: TOTAL
J80: =B39-I79 -> 0 | L80: =O67-L79 -> 0 | O80: =P67-O79 -> 0

Sheet onions4
B1: AHSAN FOR LAND RECLAMATION AND EXPORT
B2: TIR YUKLEME PLANI
B3: NOVARASISK | E3: GIDECEGI SEHIR | I3: اسم البلد | K3: 15 | L3: 2022-05-05 | O3: TRIH | Q3: تاريخ | T3: 1
B4: AZAM | E4: YUKLE MEYAPAN KISI | I4: مسئول التحميل | K4: 16 | L4: 2022-05-07 | O4: LIMAN HAREKET | Q4: وقت التحرك من الميناء | T4: 2
E5: DEPPOOAN HAREKET SAATI | I5: وقت التحميل | K5: 17 | L5: ARKU5022718 | O5: KONTEYNIR SERI NUMARASI | Q5: رقم الكنتينر | T5: 3
E6: MALIN KALITE DUZEYI | I6: جودة البضاعه | K6: 18 | L6: ONIONS 4 | O6: KONTEYNIR SIRA NO | Q6: عدد التحميل | T6: 4
B7: MOHAMED NWARA | E7: MUSTAHSIL ISMI | I7: مزرعة البضاعة | K7: 19 | L7: ARKAS | O7: KONTENIR FIRMASI | Q7: شركة كنتينر | T7: 5
B8: MOHAMED NWARA | E8: MALI ALAN SIMSAR | I8: اسم السمسار | K8: 20 | L8: AHMED YEHIA | O8: SOFR ADI | Q8: اسم السواق | T8: 6
B9: ELANWAR | E9: MALIN ISLENDIGI ISLETME | I9: اسم المحطه | K9: 21 | L9: 01210820890 | O9: SOFOR TEL | Q9: التليفون | T9: 7
E10: MALIYET | I10: تكلفة البراد | K10: 22 | L10: 7184/2631 | O10: TIR PLAKA | Q10: رقم السياره | T10: 8
I11: تكلفة الحاويه | K11: 23 | L11: 2 | O11: PARTI NO | Q11: لوط | T11: 9
B12: 5 | I12: الوقت المتاح | K12: 24 | O12: TERMOKINK NAVLIUN | Q12: نولون براد | T12: 10
B13: ALEX | E13: LIMAN ADI | I13: اسم الميناء | K13: 25 | O13: HIS COVENANT | Q13: عهده | T13: 11
B14: ELAHSAN | E14: GONDERICI FIRMA | I14: اسم المصدر | K14: 26 | O14: THE REST TERMOKINK NAVLIUN | Q14: باقي نولون براد | T14: 12
B15: FRUTTORIA | E15: ALICI FIRMA | I15: اسم المستورد | K15: 27 | L15: 1 | O15: GIDECEGI DERECE | Q15: درجة الحراره | T15: 13
B16: RUSSIA | E16: GIDECEGI ULKE | I16: اسم الدوله | K16: 28 | L16: DIONYSSIS A | O16: GEMI ADL | Q16: اسم المركب | T16: 14
D18: 1 | F18: 0.9 | H18: 0.8 | I18: * | J18: 0.7 | L18: 0.6 | N18: 0.5 | O18: MALIN KALITE DUZEYI | Q18: جودة البضاعه
F20: CIF | H20: KOMISYON | J20: CIS | K20: * | L20: FOB | N20: EXW | O20: Payment method | Q20: طريقة الدفع
K22: * | L22: NO | N22: YES | O22: GENERATOR | Q22: مولد
G24: 5 | H24: ANOTHER COUNTRY | L24: EGYPT | O24: FREE TIM | Q24: الوقت المتبقى
D26: EASY WAY | H26: Ocean Queen | K26: * | L26: Are SEA LAND | O26: GUMAURK | Q26: جمارك
B27: KALIBRE
B28: SN/ | S28: KALIBRE | X28: 19
S29: حجم | X29: 180
G30: =SUM(H30:R30) -> 0 | S30: ADET
B31: YUKLEME PLANI | X31: =X28*X29 -> 3420
B32: 15 | D32: 14 | E32: 13 | F32: 12 | G32: 11 | H32: 10 | I32: 9 | J32: 8 | L32: 7 | M32: 6 | N32: 5 | O32: 4 | P32: 3 | Q32: 2 | R32: 1 | S32: نوع البضاعه
B33: ONIONS | C33: KABOTSHI | D33: ONIONS | E33: ONIONS | F33: ONIONS | G33: ONIONS | H33: ONIONS | I33: ONIONS | J33: ONIONS | L33: ONIONS | M33: ONIONS | N33: ONIONS | O33: ONIONS | P33: ONIONS | Q33: ONIONS | R33: ONIONS | S33: MALIN CINSI
B34: 153 | D34: 153 | E34: 153 | F34: 153 | G34: 153 | H34: 153 | I34: 153 | J34: 153 | L34: 153 | M34: 153 | N34: 153 | O34: 153 | P34: 153 | Q34: 153 | R34: 153 | S34: KASA ADEDI
B35: FRESH | C35: FRESH | D35: FRESH | E35: FRESH | F35: FRESH | G35: FRESH | H35: FRESH | I35: FRESH | J35: FRESH | L35: FRESH | M35: FRESH | N35: FRESH | O35: FRESH | P35: FRESH | Q35: FRESH | R35: FRESH | S35: FREESH/COLORING
B37: TOTAL | G37: 26 | H37: 25 | I37: 24 | J37: 23 | L37: 22 | M37: 21 | N37: 20 | O37: 19 | P37: 18 | Q37: 17 | R37: 16 | S37: نوع البضاعه
G38: ONIONS | H38: ONIONS | I38: ONIONS | J38: ONIONS | L38: ONIONS | M38: ONIONS | N38: ONIONS | O38: ONIONS | P38: ONIONS | Q38: ONIONS | R38: ONIONS | S38: MALIN CINSI
B39: =R34+Q34+P34+O34+N34+M34+L34+J34+I34+H34+G34+F34+E34+D34+B34+R39+Q39+P39+O39+N39+M39+L39+J39+I39+H39+G39 -> 2754 | P39: 153 | Q39: 153 | R39: 153 | S39: KASA ADEDI
G40: FRESH | H40: FRESH | I40: FRESH | J40: FRESH | L40: FRESH | M40: FRESH | N40: FRESH | O40: FRESH | P40: FRESH | Q40: FRESH | R40: FRESH | S40: FREESH/COLORING
B42: DEGREE | D42: FRESH ONIONS | L42: ملاحظــــــــــــــــــــــــــــــــــــــــات - NOTES | S42: نوع البضاعه
B43: CLASS 1 | D43: كل المهمات خاضعه للمورد | L43: MOHAMED NWARA 18 PALLET | S43: MALIN CINSI
S44: KASA ADEDI
B45: TOTAL | D45: =D43+F43+H43 ->  | K45: YUKLEME PLANI DOKUMU
B46: Weight | D46: العدد | F46: الوحدة/الوزن | G46: بيان المهمات | L46: weight BOXES | N46: weight BOX | O46: KASA ADETI | P46: PALET ADET | Q46: COLORS BOX | R46: AMBALAJ | T46: MALIN CINSI
B47: =F47*D47 -> 0 | F47: 17 | G47: بالتة خشب صادر | I47: EXPORTED WOOD PALLET | L47: اجمالي الوزن | N47: وزن الصندوق | O47: عدد الصندوق | P47: عدد البالتات | Q47: لون الصندوق | R47: مقاس الصندوق
B48: =D48*F48 -> 0 | F48: 17 | G48: شريحة خشب 80 × 120 | I48: WOOD SLICE 80*120 | L48: =O48*N48 -> 0 | N48: 0.51 | Q48: BLUE | R48: 30*50*16 | T48: ONIONS
B49: =D49*F49 -> 0 | F49: 4 | G49: برواز خشب | I49: WOOD FRAME | L49: =O49*N49 -> 0 | N49: 0.53 | Q49: BLAK | R49: 30*50*16
F50: غطاء | G50: غطاء الاحسن اسود | I50: BLACK COVER AHSAN | L50: 0 | N50: 0.58 | Q50: BLUE | R50: 30*50*22
F51: غطاء | G51: غطاء الاحسن احمر | I51: RED COVER AHSAN | L51: 0 | N51: 0.605 | Q51: BLAK | R51: 30*50*22
F52: زاوية | G52: زوايا الاحسن اسود | I52: BLACK SQUARE AHSAN | L52: 0 | N52: 1.25 | Q52: BLUE | R52: 40*60*14
F53: زاوية | G53: زوايا الاحسن احمر | I53: RED SQUARE AHSAN | L53: 0 | N53: 0.42 | Q53: BLUE | R53: 30*40*18
F54: كيلو | G54: كلبس | I54: CLIPS | L54: 0 | N54: 0.45 | Q54: BLAK | R54: 30*40*18 | X54: 5.3
F55: كيلو | G55: شمبر | I55: CHAMBER | L55: 0 | N55: 0.45 | Q55: BLUE | R55: 30*40*16 | X55: وزن صند بالبضاعه
F56: بالالف | G56: استيكر حراري | I56: THERMAL STICKER | L56: 0 | N56: 0.45 | Q56: BLAK | R56: 30*40*16
F57: بكره | G57: استيكر بانت الاحسن | I57: PANT STICKER AHSAN | L57: 0 | N57: 0.7 | Q57: BLUE | R57: 30*40*27.5
F58: جهاز | G58: جهاز حرارة | I58: HEAT DEVICE | L58: 0 | N58: 0.3 | Q58: BLUE | R58: 30*40*12
F59: كيس | G59: زوايا احمر 120 سم | I59: RED SQUARE 120 CM | L59: 0 | N59: 0.254 | Q59: BLUE | R59: 30*40*10
F60: عدد | G60: بيان بالت | I60: BALT REPORT | L60: 0 | N60: 0.85 | R60: KARTOUN OPEN TOP
F61: عدد | G61: بانت 750 | I61: PANT 750 | L61: 0 | O61: 2754 | P61: 18 | R61: SHIKARA
F62: ص | G62: صندوق 30*40*12 ازرق | H62: صندوق 30*50*22 اسود | I62: 30*40*12 BLUE | L62: 0
F63: عدد | G63: صندوق 30*40*10 ازرق | H63: صندوق 30*50*22 اسود | I63: BOX 30*40*10 BLUE | L63: =O63*N63 -> 306 | N63: 17 | O63: 18 | R63: EXPORTED WOOD PALLET
F64: عدد | G64: بانت 1 كيلو | I64: PANT 1 K.G | L64: 0 | N64: 0.85 | R64: KARTOUN TELSKOBEK
F65: كيلو | G65: ورق جزاري 30*40 | L65: =O65*N65 -> 0
F66: كيلو | G66: ورق جزاري 30*50 | L66: 0
B67: =SUM(B47:C66) -> 0 | L67: =SUM(L48:M62) -> 0 | O67: =SUM(O48:O62) -> 2754 | P67: =SUM(P48:P66) -> 18
B68: YUKLEME PLANI DOKUMU
B69: FIYAT | D69: NET KILO | F69: DARA | H69: GAFAF KILO | I69: BRUT KILO | L69: TOTAL | M69: BOKS | O69: PALET ADET | P69: Box type and size | R69: Item
B70: Price | D70: Net Weight | F70: Tare weight | H70: GAFAF weight | I70: Gross Weight | L70: =O70*M70 -> 0 | P70: 30*40*12 BLUE | R70: ONIONS
D71: =I71+H71-F71 -> 27744 | F71: =B67+L67+L66+L65+L64+L63 -> 306 | H71: 250 | I71: 27800 | L71: =O71*M71 -> 0 | P71: 30*40*10 BLUE
L72: 0 | P72: 30*40*10 BLUE
B73: Net Weight | D73: Gross Weight | F73: Net | G73: Gross | I73: Number of boxes | L73: 2754 | M73: 153 | O73: 18 | P73: SHIKARA
B74: =F74*I74 -> 27744 | D74: =G74*I74 -> 27800 | F74: =D71/I74 -> 10.07407407 | G74: =I71/I74 -> 10.09440813 | I74: 2754 | L74: 0 | P74: 30*50*40
L75: 0 | P75: 30*50*40 | R75: ONIONS
B76: =I76*G76 -> 0 | L76: 0 | P76: 30*50*40
B77: =I77*G77 -> 0 | D77: =I77*F77 -> 0 | L77: 0 | P77: 30*50*40
B78: =I78*G78 -> 0 | D78: =I78*F78 -> 0 | L78: 0 | P78: 30*50*40
B79: =SUM(B74:C78) -> 27744 | D79: =SUM(D74:E78) -> 27800 | I79: =SUM(I74:J78) -> 2754 | L79: =SUM(L69:L78) -> 2754 | O79: =SUM(O70:O78) -> 18 | P79: TOTAL
J80: =B39-I79 -> 0 | L80: =O67-L79 -> 0 | O80: =P67-O79 -> 0

Sheet onions5
B1: AHSAN FOR LAND RECLAMATION AND EXPORT
B2: TIR YUKLEME PLANI
B3: NOVARASISK | E3: GIDECEGI SEHIR | I3: اسم البلد | K3: 15 | L3: 2022-05-10 | O3: TRIH | Q3: تاريخ | T3: 1
B4: AZAM | E4: YUKLE MEYAPAN KISI | I4: مسئول التحميل | K4: 16 | L4: 2022-05-12 | O4: LIMAN HAREKET | Q4: وقت التحرك من الميناء | T4: 2
E5: DEPPOOAN HAREKET SAATI | I5: وقت التحميل | K5: 17 | L5: ARKU5018997 | O5: KONTEYNIR SERI NUMARASI | Q5: رقم الكنتينر | T5: 3
E6: MALIN KALITE DUZEYI | I6: جودة البضاعه | K6: 18 | L6: ONIONS 5 | O6: KONTEYNIR SIRA NO | Q6: عدد التحميل | T6: 4
B7: MOHAMED TAHA | E7: MUSTAHSIL ISMI | I7: مزرعة البضاعة | K7: 19 | L7: ARKAS | O7: KONTENIR FIRMASI | Q7: شركة كنتينر | T7: 5
B8: MOHAMED TAHA | E8: MALI ALAN SIMSAR | I8: اسم السمسار | K8: 20 | L8: AHMED KHALEFA | O8: SOFR ADI | Q8: اسم السواق | T8: 6
B9: ELSAID | E9: MALIN ISLENDIGI ISLETME | I9: اسم المحطه | K9: 21 | L9: 01221851335 | O9: SOFOR TEL | Q9: التليفون | T9: 7
E10: MALIYET | I10: تكلفة البراد | K10: 22 | L10: 3615/9873 | O10: TIR PLAKA | Q10: رقم السياره | T10: 8
I11: تكلفة الحاويه | K11: 23 | L11: 1 | O11: PARTI NO | Q11: لوط | T11: 9
B12: 5 | I12: الوقت المتاح | K12: 24 | O12: TERMOKINK NAVLIUN | Q12: نولون براد | T12: 10
B13: ALEX | E13: LIMAN ADI | I13: اسم الميناء | K13: 25 | O13: HIS COVENANT | Q13: عهده | T13: 11
B14: ELAHSAN | E14: GONDERICI FIRMA | I14: اسم المصدر | K14: 26 | O14: THE REST TERMOKINK NAVLIUN | Q14: باقي نولون براد | T14: 12
B15: FRUTTORIA | E15: ALICI FIRMA | I15: اسم المستورد | K15: 27 | L15: 1 | O15: GIDECEGI DERECE | Q15: درجة الحراره | T15: 13
B16: RUSSIA | E16: GIDECEGI ULKE | I16: اسم الدوله | K16: 28 | L16: MEHMET KAHVECI A | O16: GEMI ADL | Q16: اسم المركب | T16: 14
D18: 1 | F18: 0.9 | H18: 0.8 | I18: * | J18: 0.7 | L18: 0.6 | N18: 0.5 | O18: MALIN KALITE DUZEYI | Q18: جودة البضاعه
F20: CIF | H20: KOMISYON | J20: CIS | K20: * | L20: FOB | N20: EXW | O20: Payment method | Q20: طريقة الدفع
K22: * | L22: NO | N22: YES | O22: GENERATOR | Q22: مولد
G24: 5 | H24: ANOTHER COUNTRY | L24: EGYPT | O24: FREE TIM | Q24: الوقت المتبقى
D26: EASY WAY | H26: Ocean Queen | K26: * | L26: Are SEA LAND | O26: GUMAURK | Q26: جمارك
B27: KALIBRE
B28: SN/ | S28: KALIBRE | X28: 19
S29: حجم | X29: 180
G30: =SUM(H30:R30) -> 0 | S30: ADET
B31: YUKLEME PLANI | X31: =X28*X29 -> 3420
B32: 15 | D32: 14 | E32: 13 | F32: 12 | G32: 11 | H32: 10 | I32: 9 | J32: 8 | L32: 7 | M32: 6 | N32: 5 | O32: 4 | P32: 3 | Q32: 2 | R32: 1 | S32: نوع البضاعه
B33: ONIONS | C33: KABOTSHI | D33: ONIONS | E33: ONIONS | F33: ONIONS | G33: ONIONS | H33: ONIONS | I33: ONIONS | J33: ONIONS | L33: ONIONS | M33: ONIONS | N33: ONIONS | O33: ONIONS | P33: ONIONS | Q33: ONIONS | R33: ONIONS | S33: MALIN CINSI
B34: 152 | D34: 153 | E34: 153 | F34: 153 | G34: 153 | H34: 153 | I34: 153 | J34: 153 | L34: 153 | M34: 153 | N34: 153 | O34: 153 | P34: 153 | Q34: 153 | R34: 153 | S34: KASA ADEDI
B35: FRESH | C35: FRESH | D35: FRESH | E35: FRESH | F35: FRESH | G35: FRESH | H35: FRESH | I35: FRESH | J35: FRESH | L35: FRESH | M35: FRESH | N35: FRESH | O35: FRESH | P35: FRESH | Q35: FRESH | R35: FRESH | S35: FREESH/COLORING
B37: TOTAL | G37: 26 | H37: 25 | I37: 24 | J37: 23 | L37: 22 | M37: 21 | N37: 20 | O37: 19 | P37: 18 | Q37: 17 | R37: 16 | S37: نوع البضاعه
G38: ONIONS | H38: ONIONS | I38: ONIONS | J38: ONIONS | L38: ONIONS | M38: ONIONS | N38: ONIONS | O38: ONIONS | P38: ONIONS | Q38: ONIONS | R38: ONIONS | S38: MALIN CINSI
B39: =R34+Q34+P34+O34+N34+M34+L34+J34+I34+H34+G34+F34+E34+D34+B34+R39+Q39+P39+O39+N39+M39+L39+J39+I39+H39+G39 -> 2750 | P39: 152 | Q39: 152 | R39: 152 | S39: KASA ADEDI
G40: FRESH | H40: FRESH | I40: FRESH | J40: FRESH | L40: FRESH | M40: FRESH | N40: FRESH | O40: FRESH | P40: FRESH | Q40: FRESH | R40: FRESH | S40: FREESH/COLORING
B42: DEGREE | D42: FRESH ONIONS | L42: ملاحظــــــــــــــــــــــــــــــــــــــــات - NOTES | S42: نوع البضاعه
B43: CLASS 1 | D43: كل المهمات خاضعه للمورد | L43: MOHAMED TAHA 18 PALLET | S43: MALIN CINSI
S44: KASA ADEDI
B45: TOTAL | D45: =D43+F43+H43 ->  | K45: YUKLEME PLANI DOKUMU
B46: Weight | D46: العدد | F46: الوحدة/الوزن | G46: بيان المهمات | L46: weight BOXES | N46: weight BOX | O46: KASA ADETI | P46: PALET ADET | Q46: COLORS BOX | R46: AMBALAJ | T46: MALIN CINSI
B47: =F47*D47 -> 0 | F47: 17 | G47: بالتة خشب صادر | I47: EXPORTED WOOD PALLET | L47: اجمالي الوزن | N47: وزن الصندوق | O47: عدد الصندوق | P47: عدد البالتات | Q47: لون الصندوق | R47: مقاس الصندوق
B48: =D48*F48 -> 0 | F48: 17 | G48: شريحة خشب 80 × 120 | I48: WOOD SLICE 80*120 | L48: =O48*N48 -> 0 | N48: 0.51 | Q48: BLUE | R48: 30*50*16 | T48: ONIONS
B49: =D49*F49 -> 0 | F49: 4 | G49: برواز خشب | I49: WOOD FRAME | L49: =O49*N49 -> 0 | N49: 0.53 | Q49: BLAK | R49: 30*50*16
F50: غطاء | G50: غطاء الاحسن اسود | I50: BLACK COVER AHSAN | L50: 0 | N50: 0.58 | Q50: BLUE | R50: 30*50*22
F51: غطاء | G51: غطاء الاحسن احمر | I51: RED COVER AHSAN | L51: 0 | N51: 0.605 | Q51: BLAK | R51: 30*50*22
F52: زاوية | G52: زوايا الاحسن اسود | I52: BLACK SQUARE AHSAN | L52: 0 | N52: 1.25 | Q52: BLUE | R52: 40*60*14
F53: زاوية | G53: زوايا الاحسن احمر | I53: RED SQUARE AHSAN | L53: 0 | N53: 0.42 | Q53: BLUE | R53: 30*40*18
F54: كيلو | G54: كلبس | I54: CLIPS | L54: 0 | N54: 0.45 | Q54: BLAK | R54: 30*40*18 | X54: 5.3
F55: كيلو | G55: شمبر | I55: CHAMBER | L55: 0 | N55: 0.45 | Q55: BLUE | R55: 30*40*16 | X55: وزن صند بالبضاعه
F56: بالالف | G56: استيكر حراري | I56: THERMAL STICKER | L56: 0 | N56: 0.45 | Q56: BLAK | R56: 30*40*16
F57: بكره | G57: استيكر بانت الاحسن | I57: PANT STICKER AHSAN | L57: 0 | N57: 0.7 | Q57: BLUE | R57: 30*40*27.5
F58: جهاز | G58: جهاز حرارة | I58: HEAT DEVICE | L58: 0 | N58: 0.3 | Q58: BLUE | R58: 30*40*12
F59: كيس | G59: زوايا احمر 120 سم | I59: RED SQUARE 120 CM | L59: 0 | N59: 0.254 | Q59: BLUE | R59: 30*40*10
F60: عدد | G60: بيان بالت | I60: BALT REPORT | L60: 0 | N60: 0.85 | R60: KARTOUN OPEN TOP
F61: عدد | G61: بانت 750 | I61: PANT 750 | L61: 0 | O61: 2750 | P61: 18 | R61: SHIKARA
F62: ص | G62: صندوق 30*40*12 ازرق | H62: صندوق 30*50*22 اسود | I62: 30*40*12 BLUE | L62: 0
F63: عدد | G63: صندوق 30*40*10 ازرق | H63: صندوق 30*50*22 اسود | I63: BOX 30*40*10 BLUE | L63: 306 | N63: 17 | O63: 18 | R63: EXPORTED WOOD PALLET
F64: عدد | G64: بانت 1 كيلو | I64: PANT 1 K.G | L64: 0 | N64: 0.85 | R64: KARTOUN TELSKOBEK
F65: كيلو | G65: ورق جزاري 30*40 | L65: 0
F66: كيلو | G66: ورق جزاري 30*50 | L66: 0
B67: =SUM(B47:C66) -> 0 | L67: =SUM(L48:M62) -> 0 | O67: =SUM(O48:O62) -> 2750 | P67: =SUM(P48:P66) -> 18
B68: YUKLEME PLANI DOKUMU
B69: FIYAT | D69: NET KILO | F69: DARA | H69: GAFAF KILO | I69: BRUT KILO | L69: TOTAL | M69: BOKS | O69: PALET ADET | P69: Box type and size | R69: Item
B70: Price | D70: Net Weight | F70: Tare weight | H70: GAFAF weight | I70: Gross Weight | L70: =O70*M70 -> 0 | P70: 30*40*12 BLUE | R70: ONIONS
D71: =I71+H71-F71 -> 27444 | F71: =B67+L67+L66+L65+L64+L63 -> 306 | H71: 250 | I71: 27500 | L71: =O71*M71 -> 0 | P71: 30*40*10 BLUE
L72: 0 | P72: 30*40*10 BLUE
B73: Net Weight | D73: Gross Weight | F73: Net | G73: Gross | I73: Number of boxes | L73: 2142 | M73: 153 | O73: 14 | P73: SHIKARA
B74: =F74*I74 -> 27444 | D74: =G74*I74 -> 27500 | F74: =D71/I74 -> 9.979636364 | G74: =I71/I74 -> 10 | I74: 2750 | L74: 608 | M74: 152 | O74: 4 | P74: SHIKARA
L75: 0 | P75: 30*50*40 | R75: ONIONS
B76: =I76*G76 -> 0 | L76: 0 | P76: 30*50*40
B77: =I77*G77 -> 0 | D77: =I77*F77 -> 0 | L77: 0 | P77: 30*50*40
B78: =I78*G78 -> 0 | D78: =I78*F78 -> 0 | L78: 0 | P78: 30*50*40
B79: =SUM(B74:C78) -> 27444 | D79: =SUM(D74:E78) -> 27500 | I79: =SUM(I74:J78) -> 2750 | L79: =SUM(L69:L78) -> 2750 | O79: =SUM(O70:O78) -> 18 | P79: TOTAL
J80: =B39-I79 -> 0 | L80: =O67-L79 -> 0 | O80: =P67-O79 -> 0

Sheet onions6
B1: AHSAN FOR LAND RECLAMATION AND EXPORT
B2: TIR YUKLEME PLANI
B3: NOVARASISK | E3: GIDECEGI SEHIR | I3: اسم البلد | K3: 15 | L3: 2022-05-10 | O3: TRIH | Q3: تاريخ | T3: 1
B4: AZAM | E4: YUKLE MEYAPAN KISI | I4: مسئول التحميل | K4: 16 | L4: 2022-05-12 | O4: LIMAN HAREKET | Q4: وقت التحرك من الميناء | T4: 2
E5: DEPPOOAN HAREKET SAATI | I5: وقت التحميل | K5: 17 | L5: ARKU5006738 | O5: KONTEYNIR SERI NUMARASI | Q5: رقم الكنتينر | T5: 3
E6: MALIN KALITE DUZEYI | I6: جودة البضاعه | K6: 18 | L6: ONIONS 6 | O6: KONTEYNIR SIRA NO | Q6: عدد التحميل | T6: 4
B7: MOHAMED TAHA | E7: MUSTAHSIL ISMI | I7: مزرعة البضاعة | K7: 19 | L7: ARKAS | O7: KONTENIR FIRMASI | Q7: شركة كنتينر | T7: 5
B8: MOHAMED TAHA | E8: MALI ALAN SIMSAR | I8: اسم السمسار | K8: 20 | L8: ELSAID MOHAMED | O8: SOFR ADI | Q8: اسم السواق | T8: 6
B9: ELSAID | E9: MALIN ISLENDIGI ISLETME | I9: اسم المحطه | K9: 21 | L9: 01221851335 | O9: SOFOR TEL | Q9: التليفون | T9: 7
E10: MALIYET | I10: تكلفة البراد | K10: 22 | L10: 4885/3426 | O10: TIR PLAKA | Q10: رقم السياره | T10: 8
I11: تكلفة الحاويه | K11: 23 | L11: 1 | O11: PARTI NO | Q11: لوط | T11: 9
B12: 5 | I12: الوقت المتاح | K12: 24 | O12: TERMOKINK NAVLIUN | Q12: نولون براد | T12: 10
B13: ALEX | E13: LIMAN ADI | I13: اسم الميناء | K13: 25 | O13: HIS COVENANT | Q13: عهده | T13: 11
B14: ELAHSAN | E14: GONDERICI FIRMA | I14: اسم المصدر | K14: 26 | O14: THE REST TERMOKINK NAVLIUN | Q14: باقي نولون براد | T14: 12
B15: FRUTTORIA | E15: ALICI FIRMA | I15: اسم المستورد | K15: 27 | L15: 1 | O15: GIDECEGI DERECE | Q15: درجة الحراره | T15: 13
B16: RUSSIA | E16: GIDECEGI ULKE | I16: اسم الدوله | K16: 28 | L16: MEHMET KAHVECI A | O16: GEMI ADL | Q16: اسم المركب | T16: 14
D18: 1 | F18: 0.9 | H18: 0.8 | I18: * | J18: 0.7 | L18: 0.6 | N18: 0.5 | O18: MALIN KALITE DUZEYI | Q18: جودة البضاعه
F20: CIF | H20: KOMISYON | J20: CIS | K20: * | L20: FOB | N20: EXW | O20: Payment method | Q20: طريقة الدفع
K22: * | L22: NO | N22: YES | O22: GENERATOR | Q22: مولد
G24: 5 | H24: ANOTHER COUNTRY | L24: EGYPT | O24: FREE TIM | Q24: الوقت المتبقى
D26: EASY WAY | H26: Ocean Queen | K26: * | L26: Are SEA LAND | O26: GUMAURK | Q26: جمارك
B27: KALIBRE
B28: SN/ | S28: KALIBRE | X28: 19
S29: حجم | X29: 180
G30: =SUM(H30:R30) -> 0 | S30: ADET
B31: YUKLEME PLANI | X31: =X28*X29 -> 3420
B32: 15 | D32: 14 | E32: 13 | F32: 12 | G32: 11 | H32: 10 | I32: 9 | J32: 8 | L32: 7 | M32: 6 | N32: 5 | O32: 4 | P32: 3 | Q32: 2 | R32: 1 | S32: نوع البضاعه
B33: ONIONS | C33: KABOTSHI | D33: ONIONS | E33: ONIONS | F33: ONIONS | G33: ONIONS | H33: ONIONS | I33: ONIONS | J33: ONIONS | L33: ONIONS | M33: ONIONS | N33: ONIONS | O33: ONIONS | P33: ONIONS | Q33: ONIONS | R33: ONIONS | S33: MALIN CINSI
B34: 152 | D34: 153 | E34: 153 | F34: 153 | G34: 153 | H34: 153 | I34: 153 | J34: 153 | L34: 153 | M34: 153 | N34: 153 | O34: 153 | P34: 153 | Q34: 153 | R34: 153 | S34: KASA ADEDI
B35: FRESH | C35: FRESH | D35: FRESH | E35: FRESH | F35: FRESH | G35: FRESH | H35: FRESH | I35: FRESH | J35: FRESH | L35: FRESH | M35: FRESH | N35: FRESH | O35: FRESH | P35: FRESH | Q35: FRESH | R35: FRESH | S35: FREESH/COLORING
B37: TOTAL | G37: 26 | H37: 25 | I37: 24 | J37: 23 | L37: 22 | M37: 21 | N37: 20 | O37: 19 | P37: 18 | Q37: 17 | R37: 16 | S37: نوع البضاعه
G38: ONIONS | H38: ONIONS | I38: ONIONS | J38: ONIONS | L38: ONIONS | M38: ONIONS | N38: ONIONS | O38: ONIONS | P38: ONIONS | Q38: ONIONS | R38: ONIONS | S38: MALIN CINSI
B39: =R34+Q34+P34+O34+N34+M34+L34+J34+I34+H34+G34+F34+E34+D34+B34+R39+Q39+P39+O39+N39+M39+L39+J39+I39+H39+G39 -> 2750 | P39: 152 | Q39: 152 | R39: 152 | S39: KASA ADEDI
G40: FRESH | H40: FRESH | I40: FRESH | J40: FRESH | L40: FRESH | M40: FRESH | N40: FRESH | O40: FRESH | P40: FRESH | Q40: FRESH | R40: FRESH | S40: FREESH/COLORING
B42: DEGREE | D42: FRESH ONIONS | L42: ملاحظــــــــــــــــــــــــــــــــــــــــات - NOTES | S42: نوع البضاعه
B43: CLASS 1 | D43: كل المهمات خاضعه للمورد | L43: MOHAMED TAHA 18 PALLET | S43: MALIN CINSI
S44: KASA ADEDI
B45: TOTAL | D45: =D43+F43+H43 ->  | K45: YUKLEME PLANI DOKUMU
B46: Weight | D46: العدد | F46: الوحدة/الوزن | G46: بيان المهمات | L46: weight BOXES | N46: weight BOX | O46: KASA ADETI | P46: PALET ADET | Q46: COLORS BOX | R46: AMBALAJ | T46: MALIN CINSI
B47: =F47*D47 -> 0 | F47: 17 | G47: بالتة خشب صادر | I47: EXPORTED WOOD PALLET | L47: اجمالي الوزن | N47: وزن الصندوق | O47: عدد الصندوق | P47: عدد البالتات | Q47: لون الصندوق | R47: مقاس الصندوق
B48: =D48*F48 -> 0 | F48: 17 | G48: شريحة خشب 80 × 120 | I48: WOOD SLICE 80*120 | L48: =O48*N48 -> 0 | N48: 0.51 | Q48: BLUE | R48: 30*50*16 | T48: ONIONS
B49: =D49*F49 -> 0 | F49: 4 | G49: برواز خشب | I49: WOOD FRAME | L49: =O49*N49 -> 0 | N49: 0.53 | Q49: BLAK | R49: 30*50*16
F50: غطاء | G50: غطاء الاحسن اسود | I50: BLACK COVER AHSAN | L50: 0 | N50: 0.58 | Q50: BLUE | R50: 30*50*22
F51: غطاء | G51: غطاء الاحسن احمر | I51: RED COVER AHSAN | L51: 0 | N51: 0.605 | Q51: BLAK | R51: 30*50*22
F52: زاوية | G52: زوايا الاحسن اسود | I52: BLACK SQUARE AHSAN | L52: 0 | N52: 1.25 | Q52: BLUE | R52: 40*60*14
F53: زاوية | G53: زوايا الاحسن احمر | I53: RED SQUARE AHSAN | L53: 0 | N53: 0.42 | Q53: BLUE | R53: 30*40*18
F54: كيلو | G54: كلبس | I54: CLIPS | L54: 0 | N54: 0.45 | Q54: BLAK | R54: 30*40*18 | X54: 5.3
F55: كيلو | G55: شمبر | I55: CHAMBER | L55: 0 | N55: 0.45 | Q55: BLUE | R55: 30*40*16 | X55: وزن صند بالبضاعه
F56: بالالف | G56: استيكر حراري | I56: THERMAL STICKER | L56: 0 | N56: 0.45 | Q56: BLAK | R56: 30*40*16
F57: بكره | G57: استيكر بانت الاحسن | I57: PANT STICKER AHSAN | L57: 0 | N57: 0.7 | Q57: BLUE | R57: 30*40*27.5
F58: جهاز | G58: جهاز حرارة | I58: HEAT DEVICE | L58: 0 | N58: 0.3 | Q58: BLUE | R58: 30*40*12
F59: كيس | G59: زوايا احمر 120 سم | I59: RED SQUARE 120 CM | L59: 0 | N59: 0.254 | Q59: BLUE | R59: 30*40*10
F60: عدد | G60: بيان بالت | I60: BALT REPORT | L60: 0 | N60: 0.85 | R60: KARTOUN OPEN TOP
F61: عدد | G61: بانت 750 | I61: PANT 750 | L61: 0 | O61: 2750 | P61: 18 | R61: SHIKARA
F62: ص | G62: صندوق 30*40*12 ازرق | H62: صندوق 30*50*22 اسود | I62: 30*40*12 BLUE | L62: 0
F63: عدد | G63: صندوق 30*40*10 ازرق | H63: صندوق 30*50*22 اسود | I63: BOX 30*40*10 BLUE | L63: 306 | N63: 17 | O63: 18 | R63: EXPORTED WOOD PALLET
F64: عدد | G64: بانت 1 كيلو | I64: PANT 1 K.G | L64: 0 | N64: 0.85 | R64: KARTOUN TELSKOBEK
F65: كيلو | G65: ورق جزاري 30*40 | L65: 0
F66: كيلو | G66: ورق جزاري 30*50 | L66: 0
B67: =SUM(B47:C66) -> 0 | L67: =SUM(L48:M62) -> 0 | O67: =SUM(O48:O62) -> 2750 | P67: =SUM(P48:P66) -> 18
B68: YUKLEME PLANI DOKUMU
B69: FIYAT | D69: NET KILO | F69: DARA | H69: GAFAF KILO | I69: BRUT KILO | L69: TOTAL | M69: BOKS | O69: PALET ADET | P69: Box type and size | R69: Item
B70: Price | D70: Net Weight | F70: Tare weight | H70: GAFAF weight | I70: Gross Weight | L70: =O70*M70 -> 0 | P70: 30*40*12 BLUE | R70: ONIONS
D71: =I71+H71-F71 -> 27444 | F71: =B67+L67+L66+L65+L64+L63 -> 306 | H71: 250 | I71: 27500 | L71: =O71*M71 -> 0 | P71: 30*40*10 BLUE
L72: 0 | P72: 30*40*10 BLUE
B73: Net Weight | D73: Gross Weight | F73: Net | G73: Gross | I73: Number of boxes | L73: 2142 | M73: 153 | O73: 14 | P73: SHIKARA
B74: =F74*I74 -> 27444 | D74: =G74*I74 -> 27500 | F74: =D71/I74 -> 9.979636364 | G74: =I71/I74 -> 10 | I74: 2750 | L74: 608 | M74: 152 | O74: 4 | P74: SHIKARA
L75: 0 | P75: 30*50*40 | R75: ONIONS
B76: =I76*G76 -> 0 | L76: 0 | P76: 30*50*40
B77: =I77*G77 -> 0 | D77: =I77*F77 -> 0 | L77: 0 | P77: 30*50*40
B78: =I78*G78 -> 0 | D78: =I78*F78 -> 0 | L78: 0 | P78: 30*50*40
B79: =SUM(B74:C78) -> 27444 | D79: =SUM(D74:E78) -> 27500 | I79: =SUM(I74:J78) -> 2750 | L79: =SUM(L69:L78) -> 2750 | O79: =SUM(O70:O78) -> 18 | P79: TOTAL
J80: =B39-I79 -> 0 | L80: =O67-L79 -> 0 | O80: =P67-O79 -> 0

Sheet onions7
B1: AHSAN FOR LAND RECLAMATION AND EXPORT
B2: TIR YUKLEME PLANI
B3: NOVARASISK | E3: GIDECEGI SEHIR | I3: اسم البلد | K3: 15 | L3: 2022-05-10 | O3: TRIH | Q3: تاريخ | T3: 1
B4: AZAM | E4: YUKLE MEYAPAN KISI | I4: مسئول التحميل | K4: 16 | L4: 2022-05-12 | O4: LIMAN HAREKET | Q4: وقت التحرك من الميناء | T4: 2
E5: DEPPOOAN HAREKET SAATI | I5: وقت التحميل | K5: 17 | L5: ARKU5008978 | O5: KONTEYNIR SERI NUMARASI | Q5: رقم الكنتينر | T5: 3
E6: MALIN KALITE DUZEYI | I6: جودة البضاعه | K6: 18 | L6: ONIONS 7 | O6: KONTEYNIR SIRA NO | Q6: عدد التحميل | T6: 4
B7: MOHAMED TAHA | E7: MUSTAHSIL ISMI | I7: مزرعة البضاعة | K7: 19 | L7: ARKAS | O7: KONTENIR FIRMASI | Q7: شركة كنتينر | T7: 5
B8: MOHAMED TAHA | E8: MALI ALAN SIMSAR | I8: اسم السمسار | K8: 20 | L8: MAHMOUD ALI | O8: SOFR ADI | Q8: اسم السواق | T8: 6
B9: ELSAID | E9: MALIN ISLENDIGI ISLETME | I9: اسم المحطه | K9: 21 | L9: 01289072151 | O9: SOFOR TEL | Q9: التليفون | T9: 7
E10: MALIYET | I10: تكلفة البراد | K10: 22 | L10: 3264/9675 | O10: TIR PLAKA | Q10: رقم السياره | T10: 8
I11: تكلفة الحاويه | K11: 23 | L11: 2 | O11: PARTI NO | Q11: لوط | T11: 9
B12: 5 | I12: الوقت المتاح | K12: 24 | O12: TERMOKINK NAVLIUN | Q12: نولون براد | T12: 10
B13: ALEX | E13: LIMAN ADI | I13: اسم الميناء | K13: 25 | O13: HIS COVENANT | Q13: عهده | T13: 11
B14: ELAHSAN | E14: GONDERICI FIRMA | I14: اسم المصدر | K14: 26 | O14: THE REST TERMOKINK NAVLIUN | Q14: باقي نولون براد | T14: 12
B15: FRUTTORIA | E15: ALICI FIRMA | I15: اسم المستورد | K15: 27 | L15: 1 | O15: GIDECEGI DERECE | Q15: درجة الحراره | T15: 13
B16: RUSSIA | E16: GIDECEGI ULKE | I16: اسم الدوله | K16: 28 | L16: MEHMET KAHVECI A | O16: GEMI ADL | Q16: اسم المركب | T16: 14
D18: 1 | F18: 0.9 | H18: 0.8 | I18: * | J18: 0.7 | L18: 0.6 | N18: 0.5 | O18: MALIN KALITE DUZEYI | Q18: جودة البضاعه
F20: CIF | H20: KOMISYON | J20: CIS | K20: * | L20: FOB | N20: EXW | O20: Payment method | Q20: طريقة الدفع
K22: * | L22: NO | N22: YES | O22: GENERATOR | Q22: مولد
G24: 5 | H24: ANOTHER COUNTRY | L24: EGYPT | O24: FREE TIM | Q24: الوقت المتبقى
D26: EASY WAY | H26: Ocean Queen | K26: * | L26: Are SEA LAND | O26: GUMAURK | Q26: جمارك
B27: KALIBRE
B28: SN/ | S28: KALIBRE | X28: 19
S29: حجم | X29: 180
G30: =SUM(H30:R30) -> 0 | S30: ADET
B31: YUKLEME PLANI | X31: =X28*X29 -> 3420
B32: 15 | D32: 14 | E32: 13 | F32: 12 | G32: 11 | H32: 10 | I32: 9 | J32: 8 | L32: 7 | M32: 6 | N32: 5 | O32: 4 | P32: 3 | Q32: 2 | R32: 1 | S32: نوع البضاعه
B33: ONIONS | C33: KABOTSHI | D33: ONIONS | E33: ONIONS | F33: ONIONS | G33: ONIONS | H33: ONIONS | I33: ONIONS | J33: ONIONS | L33: ONIONS | M33: ONIONS | N33: ONIONS | O33: ONIONS | P33: ONIONS | Q33: ONIONS | R33: ONIONS | S33: MALIN CINSI
B34: 152 | D34: 153 | E34: 153 | F34: 153 | G34: 153 | H34: 153 | I34: 153 | J34: 153 | L34: 153 | M34: 153 | N34: 153 | O34: 153 | P34: 153 | Q34: 153 | R34: 153 | S34: KASA ADEDI
B35: FRESH | C35: FRESH | D35: FRESH | E35: FRESH | F35: FRESH | G35: FRESH | H35: FRESH | I35: FRESH | J35: FRESH | L35: FRESH | M35: FRESH | N35: FRESH | O35: FRESH | P35: FRESH | Q35: FRESH | R35: FRESH | S35: FREESH/COLORING
B37: TOTAL | G37: 26 | H37: 25 | I37: 24 | J37: 23 | L37: 22 | M37: 21 | N37: 20 | O37: 19 | P37: 18 | Q37: 17 | R37: 16 | S37: نوع البضاعه
G38: ONIONS | H38: ONIONS | I38: ONIONS | J38: ONIONS | L38: ONIONS | M38: ONIONS | N38: ONIONS | O38: ONIONS | P38: ONIONS | Q38: ONIONS | R38: ONIONS | S38: MALIN CINSI
B39: =R34+Q34+P34+O34+N34+M34+L34+J34+I34+H34+G34+F34+E34+D34+B34+R39+Q39+P39+O39+N39+M39+L39+J39+I39+H39+G39 -> 2750 | P39: 152 | Q39: 152 | R39: 152 | S39: KASA ADEDI
G40: FRESH | H40: FRESH | I40: FRESH | J40: FRESH | L40: FRESH | M40: FRESH | N40: FRESH | O40: FRESH | P40: FRESH | Q40: FRESH | R40: FRESH | S40: FREESH/COLORING
B42: DEGREE | D42: FRESH ONIONS | L42: ملاحظــــــــــــــــــــــــــــــــــــــــات - NOTES | S42: نوع البضاعه
B43: CLASS 1 | D43: كل المهمات خاضعه للمورد | L43: MOHAMED TAHA 18 PALLET | S43: MALIN CINSI
S44: KASA ADEDI
B45: TOTAL | D45: =D43+F43+H43 ->  | K45: YUKLEME PLANI DOKUMU
B46: Weight | D46: العدد | F46: الوحدة/الوزن | G46: بيان المهمات | L46: weight BOXES | N46: weight BOX | O46: KASA ADETI | P46: PALET ADET | Q46: COLORS BOX | R46: AMBALAJ | T46: MALIN CINSI
B47: =F47*D47 -> 0 | F47: 17 | G47: بالتة خشب صادر | I47: EXPORTED WOOD PALLET | L47: اجمالي الوزن | N47: وزن الصندوق | O47: عدد الصندوق | P47: عدد البالتات | Q47: لون الصندوق | R47: مقاس الصندوق
B48: =D48*F48 -> 0 | F48: 17 | G48: شريحة خشب 80 × 120 | I48: WOOD SLICE 80*120 | L48: =O48*N48 -> 0 | N48: 0.51 | Q48: BLUE | R48: 30*50*16 | T48: ONIONS
B49: =D49*F49 -> 0 | F49: 4 | G49: برواز خشب | I49: WOOD FRAME | L49: =O49*N49 -> 0 | N49: 0.53 | Q49: BLAK | R49: 30*50*16
F50: غطاء | G50: غطاء الاحسن اسود | I50: BLACK COVER AHSAN | L50: 0 | N50: 0.58 | Q50: BLUE | R50: 30*50*22
F51: غطاء | G51: غطاء الاحسن احمر | I51: RED COVER AHSAN | L51: 0 | N51: 0.605 | Q51: BLAK | R51: 30*50*22
F52: زاوية | G52: زوايا الاحسن اسود | I52: BLACK SQUARE AHSAN | L52: 0 | N52: 1.25 | Q52: BLUE | R52: 40*60*14
F53: زاوية | G53: زوايا الاحسن احمر | I53: RED SQUARE AHSAN | L53: 0 | N53: 0.42 | Q53: BLUE | R53: 30*40*18
F54: كيلو | G54: كلبس | I54: CLIPS | L54: 0 | N54: 0.45 | Q54: BLAK | R54: 30*40*18 | X54: 5.3
F55: كيلو | G55: شمبر | I55: CHAMBER | L55: 0 | N55: 0.45 | Q55: BLUE | R55: 30*40*16 | X55: وزن صند بالبضاعه
F56: بالالف | G56: استيكر حراري | I56: THERMAL STICKER | L56: 0 | N56: 0.45 | Q56: BLAK | R56: 30*40*16
F57: بكره | G57: استيكر بانت الاحسن | I57: PANT STICKER AHSAN | L57: 0 | N57: 0.7 | Q57: BLUE | R57: 30*40*27.5
F58: جهاز | G58: جهاز حرارة | I58: HEAT DEVICE | L58: 0 | N58: 0.3 | Q58: BLUE | R58: 30*40*12
F59: كيس | G59: زوايا احمر 120 سم | I59: RED SQUARE 120 CM | L59: 0 | N59: 0.254 | Q59: BLUE | R59: 30*40*10
F60: عدد | G60: بيان بالت | I60: BALT REPORT | L60: 0 | N60: 0.85 | R60: KARTOUN OPEN TOP
F61: عدد | G61: بانت 750 | I61: PANT 750 | L61: 0 | O61: 2750 | P61: 18 | R61: SHIKARA
F62: ص | G62: صندوق 30*40*12 ازرق | H62: صندوق 30*50*22 اسود | I62: 30*40*12 BLUE | L62: 0
F63: عدد | G63: صندوق 30*40*10 ازرق | H63: صندوق 30*50*22 اسود | I63: BOX 30*40*10 BLUE | L63: 306 | N63: 17 | O63: 18 | R63: EXPORTED WOOD PALLET
F64: عدد | G64: بانت 1 كيلو | I64: PANT 1 K.G | L64: 0 | N64: 0.85 | R64: KARTOUN TELSKOBEK
F65: كيلو | G65: ورق جزاري 30*40 | L65: 0
F66: كيلو | G66: ورق جزاري 30*50 | L66: 0
B67: =SUM(B47:C66) -> 0 | L67: =SUM(L48:M62) -> 0 | O67: =SUM(O48:O62) -> 2750 | P67: =SUM(P48:P66) -> 18
B68: YUKLEME PLANI DOKUMU
B69: FIYAT | D69: NET KILO | F69: DARA | H69: GAFAF KILO | I69: BRUT KILO | L69: TOTAL | M69: BOKS | O69: PALET ADET | P69: Box type and size | R69: Item
B70: Price | D70: Net Weight | F70: Tare weight | H70: GAFAF weight | I70: Gross Weight | L70: =O70*M70 -> 0 | P70: 30*40*12 BLUE | R70: ONIONS
D71: =I71+H71-F71 -> 27444 | F71: =B67+L67+L66+L65+L64+L63 -> 306 | H71: 250 | I71: 27500 | L71: =O71*M71 -> 0 | P71: 30*40*10 BLUE
L72: 0 | P72: 30*40*10 BLUE
B73: Net Weight | D73: Gross Weight | F73: Net | G73: Gross | I73: Number of boxes | L73: 2142 | M73: 153 | O73: 14 | P73: SHIKARA
B74: =F74*I74 -> 27444 | D74: =G74*I74 -> 27500 | F74: =D71/I74 -> 9.979636364 | G74: =I71/I74 -> 10 | I74: 2750 | L74: 608 | M74: 152 | O74: 4 | P74: SHIKARA
L75: 0 | P75: 30*50*40 | R75: ONIONS
B76: =I76*G76 -> 0 | L76: 0 | P76: 30*50*40
B77: =I77*G77 -> 0 | D77: =I77*F77 -> 0 | L77: 0 | P77: 30*50*40
B78: =I78*G78 -> 0 | D78: =I78*F78 -> 0 | L78: 0 | P78: 30*50*40
B79: =SUM(B74:C78) -> 27444 | D79: =SUM(D74:E78) -> 27500 | I79: =SUM(I74:J78) -> 2750 | L79: =SUM(L69:L78) -> 2750 | O79: =SUM(O70:O78) -> 18 | P79: TOTAL
J80: =B39-I79 -> 0 | L80: =O67-L79 -> 0 | O80: =P67-O79 -> 0

Sheet onions8
B1: AHSAN FOR LAND RECLAMATION AND EXPORT
B2: TIR YUKLEME PLANI
B3: NOVARASISK | E3: GIDECEGI SEHIR | I3: اسم البلد | K3: 15 | L3: 2022-05-11 | O3: TRIH | Q3: تاريخ | T3: 1
B4: AZAM | E4: YUKLE MEYAPAN KISI | I4: مسئول التحميل | K4: 16 | L4: 2022-05-12 | O4: LIMAN HAREKET | Q4: وقت التحرك من الميناء | T4: 2
E5: DEPPOOAN HAREKET SAATI | I5: وقت التحميل | K5: 17 | L5: ARKU5000935 | O5: KONTEYNIR SERI NUMARASI | Q5: رقم الكنتينر | T5: 3
E6: MALIN KALITE DUZEYI | I6: جودة البضاعه | K6: 18 | L6: ONIONS 8 | O6: KONTEYNIR SIRA NO | Q6: عدد التحميل | T6: 4
B7: MOHAMED TAHA | E7: MUSTAHSIL ISMI | I7: مزرعة البضاعة | K7: 19 | L7: ARKAS | O7: KONTENIR FIRMASI | Q7: شركة كنتينر | T7: 5
B8: MOHAMED TAHA | E8: MALI ALAN SIMSAR | I8: اسم السمسار | K8: 20 | L8: MOHAMED IBRAHEM | O8: SOFR ADI | Q8: اسم السواق | T8: 6
B9: ELSAID | E9: MALIN ISLENDIGI ISLETME | I9: اسم المحطه | K9: 21 | L9: 01289189457 | O9: SOFOR TEL | Q9: التليفون | T9: 7
E10: MALIYET | I10: تكلفة البراد | K10: 22 | L10: 7254/9156 | O10: TIR PLAKA | Q10: رقم السياره | T10: 8
I11: تكلفة الحاويه | K11: 23 | L11: 2 | O11: PARTI NO | Q11: لوط | T11: 9
B12: 5 | I12: الوقت المتاح | K12: 24 | O12: TERMOKINK NAVLIUN | Q12: نولون براد | T12: 10
B13: ALEX | E13: LIMAN ADI | I13: اسم الميناء | K13: 25 | O13: HIS COVENANT | Q13: عهده | T13: 11
B14: ELAHSAN | E14: GONDERICI FIRMA | I14: اسم المصدر | K14: 26 | O14: THE REST TERMOKINK NAVLIUN | Q14: باقي نولون براد | T14: 12
B15: FRUTTORIA | E15: ALICI FIRMA | I15: اسم المستورد | K15: 27 | L15: 1 | O15: GIDECEGI DERECE | Q15: درجة الحراره | T15: 13
B16: RUSSIA | E16: GIDECEGI ULKE | I16: اسم الدوله | K16: 28 | L16: MEHMET KAHVECI A | O16: GEMI ADL | Q16: اسم المركب | T16: 14
D18: 1 | F18: 0.9 | H18: 0.8 | I18: * | J18: 0.7 | L18: 0.6 | N18: 0.5 | O18: MALIN KALITE DUZEYI | Q18: جودة البضاعه
F20: CIF | H20: KOMISYON | J20: CIS | K20: * | L20: FOB | N20: EXW | O20: Payment method | Q20: طريقة الدفع
K22: * | L22: NO | N22: YES | O22: GENERATOR | Q22: مولد
G24: 5 | H24: ANOTHER COUNTRY | L24: EGYPT | O24: FREE TIM | Q24: الوقت المتبقى
D26: EASY WAY | H26: Ocean Queen | K26: * | L26: Are SEA LAND | O26: GUMAURK | Q26: جمارك
B27: KALIBRE
B28: SN/ | S28: KALIBRE | X28: 19
S29: حجم | X29: 180
G30: =SUM(H30:R30) -> 0 | S30: ADET
B31: YUKLEME PLANI | X31: =X28*X29 -> 3420
B32: 15 | D32: 14 | E32: 13 | F32: 12 | G32: 11 | H32: 10 | I32: 9 | J32: 8 | L32: 7 | M32: 6 | N32: 5 | O32: 4 | P32: 3 | Q32: 2 | R32: 1 | S32: نوع البضاعه
B33: ONIONS | C33: KABOTSHI | D33: ONIONS | E33: ONIONS | F33: ONIONS | G33: ONIONS | H33: ONIONS | I33: ONIONS | J33: ONIONS | L33: ONIONS | M33: ONIONS | N33: ONIONS | O33: ONIONS | P33: ONIONS | Q33: ONIONS | R33: ONIONS | S33: MALIN CINSI
B34: 152 | D34: 153 | E34: 153 | F34: 153 | G34: 153 | H34: 153 | I34: 153 | J34: 153 | L34: 153 | M34: 153 | N34: 153 | O34: 153 | P34: 153 | Q34: 153 | R34: 153 | S34: KASA ADEDI
B35: FRESH | C35: FRESH | D35: FRESH | E35: FRESH | F35: FRESH | G35: FRESH | H35: FRESH | I35: FRESH | J35: FRESH | L35: FRESH | M35: FRESH | N35: FRESH | O35: FRESH | P35: FRESH | Q35: FRESH | R35: FRESH | S35: FREESH/COLORING
B37: TOTAL | G37: 26 | H37: 25 | I37: 24 | J37: 23 | L37: 22 | M37: 21 | N37: 20 | O37: 19 | P37: 18 | Q37: 17 | R37: 16 | S37: نوع البضاعه
G38: ONIONS | H38: ONIONS | I38: ONIONS | J38: ONIONS | L38: ONIONS | M38: ONIONS | N38: ONIONS | O38: ONIONS | P38: ONIONS | Q38: ONIONS | R38: ONIONS | S38: MALIN CINSI
B39: =R34+Q34+P34+O34+N34+M34+L34+J34+I34+H34+G34+F34+E34+D34+B34+R39+Q39+P39+O39+N39+M39+L39+J39+I39+H39+G39 -> 2750 | P39: 152 | Q39: 152 | R39: 152 | S39: KASA ADEDI
G40: FRESH | H40: FRESH | I40: FRESH | J40: FRESH | L40: FRESH | M40: FRESH | N40: FRESH | O40: FRESH | P40: FRESH | Q40: FRESH | R40: FRESH | S40: FREESH/COLORING
B42: DEGREE | D42: FRESH ONIONS | L42: ملاحظــــــــــــــــــــــــــــــــــــــــات - NOTES | S42: نوع البضاعه
B43: CLASS 1 | D43: كل المهمات خاضعه للمورد | L43: MOHAMED TAHA 18 PALLET | S43: MALIN CINSI
S44: KASA ADEDI
B45: TOTAL | D45: =D43+F43+H43 ->  | K45: YUKLEME PLANI DOKUMU
B46: Weight | D46: العدد | F46: الوحدة/الوزن | G46: بيان المهمات | L46: weight BOXES | N46: weight BOX | O46: KASA ADETI | P46: PALET ADET | Q46: COLORS BOX | R46: AMBALAJ | T46: MALIN CINSI
B47: =F47*D47 -> 0 | F47: 17 | G47: بالتة خشب صادر | I47: EXPORTED WOOD PALLET | L47: اجمالي الوزن | N47: وزن الصندوق | O47: عدد الصندوق | P47: عدد البالتات | Q47: لون الصندوق | R47: مقاس الصندوق
B48: =D48*F48 -> 0 | F48: 17 | G48: شريحة خشب 80 × 120 | I48: WOOD SLICE 80*120 | L48: =O48*N48 -> 0 | N48: 0.51 | Q48: BLUE | R48: 30*50*16 | T48: ONIONS
B49: =D49*F49 -> 0 | F49: 4 | G49: برواز خشب | I49: WOOD FRAME | L49: =O49*N49 -> 0 | N49: 0.53 | Q49: BLAK | R49: 30*50*16
F50: غطاء | G50: غطاء الاحسن اسود | I50: BLACK COVER AHSAN | L50: 0 | N50: 0.58 | Q50: BLUE | R50: 30*50*22
F51: غطاء | G51: غطاء الاحسن احمر | I51: RED COVER AHSAN | L51: 0 | N51: 0.605 | Q51: BLAK | R51: 30*50*22
F52: زاوية | G52: زوايا الاحسن اسود | I52: BLACK SQUARE AHSAN | L52: 0 | N52: 1.25 | Q52: BLUE | R52: 40*60*14
F53: زاوية | G53: زوايا الاحسن احمر | I53: RED SQUARE AHSAN | L53: 0 | N53: 0.42 | Q53: BLUE | R53: 30*40*18
F54: كيلو | G54: كلبس | I54: CLIPS | L54: 0 | N54: 0.45 | Q54: BLAK | R54: 30*40*18 | X54: 5.3
F55: كيلو | G55: شمبر | I55: CHAMBER | L55: 0 | N55: 0.45 | Q55: BLUE | R55: 30*40*16 | X55: وزن صند بالبضاعه
F56: بالالف | G56: استيكر حراري | I56: THERMAL STICKER | L56: 0 | N56: 0.45 | Q56: BLAK | R56: 30*40*16
F57: بكره | G57: استيكر بانت الاحسن | I57: PANT STICKER AHSAN | L57: 0 | N57: 0.7 | Q57: BLUE | R57: 30*40*27.5
F58: جهاز | G58: جهاز حرارة | I58: HEAT DEVICE | L58: 0 | N58: 0.3 | Q58: BLUE | R58: 30*40*12
F59: كيس | G59: زوايا احمر 120 سم | I59: RED SQUARE 120 CM | L59: 0 | N59: 0.254 | Q59: BLUE | R59: 30*40*10
F60: عدد | G60: بيان بالت | I60: BALT REPORT | L60: 0 | N60: 0.85 | R60: KARTOUN OPEN TOP
F61: عدد | G61: بانت 750 | I61: PANT 750 | L61: 0 | O61: 2750 | P61: 18 | R61: SHIKARA
F62: ص | G62: صندوق 30*40*12 ازرق | H62: صندوق 30*50*22 اسود | I62: 30*40*12 BLUE | L62: 0
F63: عدد | G63: صندوق 30*40*10 ازرق | H63: صندوق 30*50*22 اسود | I63: BOX 30*40*10 BLUE | L63: 306 | N63: 17 | O63: 18 | R63: EXPORTED WOOD PALLET
F64: عدد | G64: بانت 1 كيلو | I64: PANT 1 K.G | L64: 0 | N64: 0.85 | R64: KARTOUN TELSKOBEK
F65: كيلو | G65: ورق جزاري 30*40 | L65: 0
F66: كيلو | G66: ورق جزاري 30*50 | L66: 0
B67: =SUM(B47:C66) -> 0 | L67: =SUM(L48:M62) -> 0 | O67: =SUM(O48:O62) -> 2750 | P67: =SUM(P48:P66) -> 18
B68: YUKLEME PLANI DOKUMU
B69: FIYAT | D69: NET KILO | F69: DARA | H69: GAFAF KILO | I69: BRUT KILO | L69: TOTAL | M69: BOKS | O69: PALET ADET | P69: Box type and size | R69: Item
B70: Price | D70: Net Weight | F70: Tare weight | H70: GAFAF weight | I70: Gross Weight | L70: =O70*M70 -> 0 | P70: 30*40*12 BLUE | R70: ONIONS
D71: =I71+H71-F71 -> 27444 | F71: =B67+L67+L66+L65+L64+L63 -> 306 | H71: 250 | I71: 27500 | L71: =O71*M71 -> 0 | P71: 30*40*10 BLUE
L72: 0 | P72: 30*40*10 BLUE
B73: Net Weight | D73: Gross Weight | F73: Net | G73: Gross | I73: Number of boxes | L73: 2142 | M73: 153 | O73: 14 | P73: SHIKARA
B74: =F74*I74 -> 27444 | D74: =G74*I74 -> 27500 | F74: =D71/I74 -> 9.979636364 | G74: =I71/I74 -> 10 | I74: 2750 | L74: 608 | M74: 152 | O74: 4 | P74: SHIKARA
L75: 0 | P75: 30*50*40 | R75: ONIONS
B76: =I76*G76 -> 0 | L76: 0 | P76: 30*50*40
B77: =I77*G77 -> 0 | D77: =I77*F77 -> 0 | L77: 0 | P77: 30*50*40
B78: =I78*G78 -> 0 | D78: =I78*F78 -> 0 | L78: 0 | P78: 30*50*40
B79: =SUM(B74:C78) -> 27444 | D79: =SUM(D74:E78) -> 27500 | I79: =SUM(I74:J78) -> 2750 | L79: =SUM(L69:L78) -> 2750 | O79: =SUM(O70:O78) -> 18 | P79: TOTAL
J80: =B39-I79 -> 0 | L80: =O67-L79 -> 0 | O80: =P67-O79 -> 0
